{"text_format":"1","workbook":"xlsx","n_sheets":4,"sheets":["Contact","Organisme","Annuaire de recherche","Sheet"],"not_rendered":{"charts":0,"images":14,"macros":1,"external_links":0,"defined_names":10,"comments":0,"pivot_tables":0},"unopened":[],"bounds":{"document_bytes":16777216,"sheet_cells":100000,"rows_first":2000,"rows_last":500,"rows_between":2000,"halvings":0,"cell_chars":16384,"cell_head_chars":4096},"cells_cut":0,"cells_raw":0,"read":"whole","date_system":"1900"}

{"sheet":"Contact","index":0,"n_rows":18,"n_cols":18,"rows_kept":18,"cut":false,"hidden":false,"merged":[[7,1,8,8],[7,9,8,13],[7,14,8,17],[1,3,4,13]]}
[]
[null,null,null,"Base de données CONTACTS"]
[]
[]
[]
[]
[]
[null,"PROFIL",null,null,null,null,null,null,null,"CONTACT",null,null,null,null,"HISTORIQUE"]
[]
[null,"ID PQ","Civilité ","Nom","Prénom ","Entreprise","Departement ","Fonction ","Propriétaire","Téléphone","Portable","Email","Linkedin","Twitter","Commentaire ","Origine du contact","Date de création ","MAJ"]
[{"$f":"IF(E11=\"\",0,1)+IF(C11=\"\",0,1)+IF(D11=\"\",0,1)+IF(G11=\"\",0,1)+IF(H11=\"\",0,1)+IF(F11=\"\",0,1)+IF(J11=\"\",0,1)+IF(K11=\"\",0,1)+IF(L11=\"\",0,1)+IF(N11=\"\",0,1)+IF(I11=\"\",0,1)+IF(P11=\"\",0,1)+IF(Q11=\"\",0,1)+IF(R11=\"\",0,1)+IF(M11=\"\",0,1)+IF(B11=\"\",0,1)","v":16},"PQ1","Mr","Poule","Luc","pluto","Ressources humaines","responsable paie et formation","oui","09 78 98 78 98","06 84 94 04 94","Luc.polo@gmail.com","/","@",null,"chantier","2017-11-23","2017-11-24"]
[{"$f":"IF(E12=\"\",0,1)+IF(C12=\"\",0,1)+IF(D12=\"\",0,1)+IF(G12=\"\",0,1)+IF(H12=\"\",0,1)+IF(F12=\"\",0,1)+IF(J12=\"\",0,1)+IF(K12=\"\",0,1)+IF(L12=\"\",0,1)+IF(N12=\"\",0,1)+IF(I12=\"\",0,1)+IF(P12=\"\",0,1)+IF(Q12=\"\",0,1)+IF(R12=\"\",0,1)+IF(M12=\"\",0,1)+IF(B12=\"\",0,1)","v":16},"PQ2","Mme","Coq","Mic","molo","Marketing","chef de publicité ","non","08 98 78 67 89","06 78 12 47 54","Mic.molo@gmail.com","/","@",null,"partenaire","2017-11-23","2017-11-24"]
[16,"PQ3","Mme","Anne","Molly","molo","Services généraux","stagiaire ","non","08 98 09 78 00","07 78 12 47 54","molly.ploc@gmail.com","/","@",null,"business","2017-11-23","2017-11-24"]
[1,"PQ4"]
[1,"PQ5"]
[1,"PQ6"]
[1,"PQ7"]
[1,"PQ8"]

{"sheet":"Organisme","index":1,"n_rows":14,"n_cols":21,"rows_kept":14,"cut":false,"hidden":false,"merged":[[7,17,8,20],[1,3,4,12],[7,1,8,11],[7,12,8,16]]}
[]
[null,null,null,"Base de données ORGANISMES"]
[]
[]
[]
[]
[]
[null,"PROFIL",null,null,null,null,null,null,null,null,null,null,"CONTACT",null,null,null,null,"HISTORIQUE"]
[]
[null,"ID OQ","Organisme ","Secteur ","Nbr d'employés","Adresse ","Code postal","Ville ","PAYS","Parc Noveos","Club Noveos","Club entreprise","Téléphone","Site internet ","Facebook","Linkedin","Twitter","Commentaire","Origine du contact","Date de contact","Date MAJ"]
[{"$f":"IF(B11=\"\",0,1)+IF(C11=\"\",0,1)+IF(D11=\"\",0,1)+IF(E11=\"\",0,1)+IF(M11=\"\",0,1)+IF(F11=\"\",0,1)+IF(G11=\"\",0,1)+IF(H11=\"\",0,1)+IF(I11=\"\",0,1)+IF(J11=\"\",0,1)+IF(K11=\"\",0,1)+IF(L11=\"\",0,1)+IF(N11=\"\",0,1)+IF(O11=\"\",0,1)+IF(P11=\"\",0,1)+IF(Q11=\"\",0,1)+IF(S11=\"\",0,1)+IF(T11=\"\",0,1)+IF(U11=\"\",0,1)","v":16},"OQ1","Pluto","btp",4,"route du près",57000,"Metz","France ","oui","non","Le vivier","08 39 93 99 93","pluto.fr","lien FB  pluto","lien LKDN","lien T","opportunité à développer"]
[{"$f":"IF(B12=\"\",0,1)+IF(C12=\"\",0,1)+IF(D12=\"\",0,1)+IF(E12=\"\",0,1)+IF(M12=\"\",0,1)+IF(F12=\"\",0,1)+IF(G12=\"\",0,1)+IF(H12=\"\",0,1)+IF(I12=\"\",0,1)+IF(J12=\"\",0,1)+IF(K12=\"\",0,1)+IF(L12=\"\",0,1)+IF(N12=\"\",0,1)+IF(O12=\"\",0,1)+IF(P12=\"\",0,1)+IF(Q12=\"\",0,1)+IF(S12=\"\",0,1)+IF(T12=\"\",0,1)+IF(U12=\"\",0,1)","v":16},"OQ2","Molo","tourisme",3,"rue de paris ",57950,"Montigny les Metz ","France ","oui","oui","/","09 39 93 99 93","molo.fr","lien FB  molo","lien LKDN","lien T"]
[0]
[0]

{"sheet":"Annuaire de recherche","index":2,"n_rows":76,"n_cols":17,"rows_kept":76,"cut":false,"hidden":false,"merged":[[21,15,21,17],[23,3,25,17],[18,11,18,12],[19,11,19,12],[20,11,20,12],[20,13,21,13],[18,2,18,4],[19,3,19,4],[20,2,20,4],[19,5,20,7],[19,8,20,10],[18,15,18,17],[19,15,19,17],[20,15,20,17],[28,3,29,4],[1,4,4,13],[8,1,9,5],[8,6,9,9],[12,3,13,4],[15,3,15,4],[44,3,44,5],[46,3,46,5],[32,3,32,4],[32,5,32,6],[34,3,35,5],[48,13,48,16],[34,13,35,16],[37,13,38,16],[48,3,48,5],[32,8,32,9],[32,10,32,11],[40,8,40,10],[42,8,42,10],[44,8,44,10],[46,8,46,10],[48,8,48,10],[34,8,35,11],[37,8,38,11],[37,3,38,5],[40,3,40,5],[42,3,42,5],[32,14,32,15],[40,13,40,16],[42,13,42,16],[44,13,44,16],[46,13,46,16],[50,1,54,6],[50,7,54,11],[50,12,54,18],[57,3,57,4],[57,5,57,6],[57,8,57,9],[57,10,57,11],[57,14,57,15],[59,3,60,5],[59,8,60,11],[59,13,60,16],[62,3,63,5],[62,8,63,11],[62,13,63,16],[65,3,65,5],[65,8,65,10],[65,13,65,16],[67,3,67,5],[67,8,67,10],[67,13,67,16],[69,3,69,5],[69,8,69,10],[69,13,69,16],[71,3,71,5],[71,8,71,10],[71,13,71,16],[73,3,73,5],[73,8,73,10],[73,13,73,16],[75,1,79,6],[75,7,79,11],[75,12,79,18]]}
[]
[null,null,null,null,"Annuaire de recherches "]
[]
[]
[]
[]
[]
[]
[null,"Rechercher un organisme / entreprise :",null,null,null,null,"Molo"]
[]
[]
[]
[null,null,null,"Entreprise"]
[]
[]
[]
[]
[]
[null,null,{"$f":"VLOOKUP(G9,Organisme!C10:U913,4,FALSE)","v":"rue de paris "},null,null,null,null,null,null,null,null,"Parc Noveos:",null,{"$f":"VLOOKUP(G9,Organisme!C10:U913,8,FALSE)","v":"oui"},null,{"$f":"VLOOKUP(G9,Organisme!C10:U913,11,FALSE)","v":"09 39 93 99 93"}]
[null,null,{"$f":"VLOOKUP(G9,Organisme!C10:U913,5,FALSE)","v":57950},{"$f":"VLOOKUP(G9,Organisme!C10:U913,6,FALSE)","v":"Montigny les Metz "},null,{"$f":"VLOOKUP(G9,Organisme!C10:U913,2,FALSE)","v":"tourisme"},null,null,{"$f":"VLOOKUP(G9,Organisme!C10:U913,3,FALSE)","v":3},null,null,"Club Noveos:",null,{"$f":"VLOOKUP(G9,Organisme!C10:U913,9,FALSE)","v":"oui"},null,{"$f":"VLOOKUP(G9,Organisme!C10:U913,12,FALSE)","v":"molo.fr"}]
[null,null,{"$f":"VLOOKUP(G9,Organisme!C10:U913,7,FALSE)","v":"France "},null,null,null,null,null,null,null,null,"Club d'entreprise:",null,{"$f":"VLOOKUP(G9,Organisme!C10:U913,10,FALSE)","v":"/"},null,{"$f":"VLOOKUP(G9,Organisme!C10:U913,13,FALSE)","v":"lien FB  molo"}]
[null,null,null,null,null,null,null,null,null,null,null,null,null,null,null,{"$f":"VLOOKUP(G9,Organisme!C10:U913,14,FALSE)","v":"lien LKDN"}]
[]
[null,null,null,{"$f":"VLOOKUP(G9,Organisme!C10:U13,16,FALSE)","v":0}]
[]
[]
[]
[]
[null,null,null,"Contacts"]
[]
[]
[]
[null,null,"Civilité","NOM",null,"Prénom",null,"Civilité","NOM",null,"Prénom",null,null,"Civilité","NOM",null,"Prénom"]
[]
[null,null,null,"Departement",null,null,null,null,"Departement",null,null,null,null,"Departement"]
[]
[]
[null,null,null,"Fonction ",null,null,null,null,"Fonction ",null,null,null,null,"Fonction "]
[]
[]
[null,null,null,"Téléphone",null,null,null,null,"Téléphone",null,null,null,null,"Téléphone"]
[]
[null,null,null,"Portable",null,null,null,null,"Portable",null,null,null,null,"Portable"]
[]
[null,null,null,"Email",null,null,null,null,"Email",null,null,null,null,"Email"]
[]
[null,null,null,"Linkedin",null,null,null,null,"Linkedin",null,null,null,null,"Linkedin"]
[]
[null,null,null,"Twitter",null,null,null,null,"Twitter",null,null,null,null,"Twitter"]
[]
[null,"Commentaire",null,null,null,null,null,"Commenataire ",null,null,null,null,"Commentaire"]
[]
[]
[]
[]
[]
[]
[null,null,"Civilité","NOM",null,"Prénom",null,"Civilité","NOM",null,"Prénom",null,null,"Civilité","NOM",null,"Prénom"]
[]
[null,null,null,"Departement",null,null,null,null,"Departement",null,null,null,null,"Departement"]
[]
[]
[null,null,null,"Fonction ",null,null,null,null,"Fonction ",null,null,null,null,"Fonction "]
[]
[]
[null,null,null,"Téléphone",null,null,null,null,"Téléphone",null,null,null,null,"Téléphone"]
[]
[null,null,null,"Portable",null,null,null,null,"Portable",null,null,null,null,"Portable"]
[]
[null,null,null,"Email",null,null,null,null,"Email",null,null,null,null,"Email"]
[]
[null,null,null,"Linkedin",null,null,null,null,"Linkedin",null,null,null,null,"Linkedin"]
[]
[null,null,null,"Twitter",null,null,null,null,"Twitter",null,null,null,null,"Twitter"]
[]
[null,"Commentaire",null,null,null,null,null,"Commentaire ",null,null,null,null,"Commentaire"]

{"sheet":"Sheet","index":3,"n_rows":1000,"n_cols":11,"rows_kept":1000,"cut":false,"hidden":false,"merged":[]}
["Secteur",null,"Departement",null,"Civilité",null,"Réponse",null,"Organisme",null,"Pays"]
["Agriculture",null,"Achat",null,"Mme",null,"Oui",null,{"$f":"IF(Organisme!C11=\"\",\"\",Organisme!C11)","v":"Pluto"},null,"Afrique du Sud"]
["Agroalimentaire - Alimentation",null,"Administration, Comptabilité et Finance ",null,"Mr",null,"Non",null,{"$f":"IF(Organisme!C12=\"\",\"\",Organisme!C12)","v":"Molo"},null,"Afghanistan"]
["Aménageur - Parc d'activité ",null,"Commercial",null,null,null,null,null,{"$f":"IF(Organisme!C13=\"\",\"\",Organisme!C13)","v":""},null,"Albanie"]
["Animaux",null,"Communication ",null,null,null,null,null,{"$f":"IF(Organisme!C14=\"\",\"\",Organisme!C14)","v":""},null,"Algérie"]
["Architecture - Aménagement intérieur",null,"Evenémentiel ",null,null,null,null,null,{"$f":"IF(Organisme!C15=\"\",\"\",Organisme!C15)","v":""},null,"Allemagne"]
["Artisanat - Métiers d'art",null,"Ingénierie et Technique",null,null,null,null,null,{"$f":"IF(Organisme!C16=\"\",\"\",Organisme!C16)","v":""},null,"Andorre"]
["Banque - Finance - Assurance",null,"IT et Télécommunication ",null,null,null,null,null,{"$f":"IF(Organisme!C17=\"\",\"\",Organisme!C17)","v":""},null,"Angola"]
["Bâtiment - Travaux publics",null,"Management et Direction",null,null,null,null,null,{"$f":"IF(Organisme!C18=\"\",\"\",Organisme!C18)","v":""},null,"Antigua-et-Barbuda"]
["Biologie - Chimie",null,"Marketing",null,null,null,null,null,{"$f":"IF(Organisme!C19=\"\",\"\",Organisme!C19)","v":""},null,"Arabie Saoudite"]
["Club d'entreprise",null,"Production et Construction",null,null,null,null,null,{"$f":"IF(Organisme!C20=\"\",\"\",Organisme!C20)","v":""},null,"Argentine"]
["Collectivité territoriale",null,"Recherche et Développement",null,null,null,null,null,{"$f":"IF(Organisme!C21=\"\",\"\",Organisme!C21)","v":""},null,"Arménie"]
["Commerce - Immobilier",null,"Ressources humaines",null,null,null,null,null,{"$f":"IF(Organisme!C22=\"\",\"\",Organisme!C22)","v":""},null,"Australie"]
["Communication - Information",null,"Secrétariat et Support Administratif",null,null,null,null,null,{"$f":"IF(Organisme!C23=\"\",\"\",Organisme!C23)","v":""},null,"Autriche"]
["Culture - Spectacle",null,"Service Légal",null,null,null,null,null,{"$f":"IF(Organisme!C24=\"\",\"\",Organisme!C24)","v":""},null,"Azerbaïdjan"]
["Défense - Sécurité - Secours",null,"Services généraux",null,null,null,null,null,{"$f":"IF(Organisme!C25=\"\",\"\",Organisme!C25)","v":""},null,"Bahamas"]
["Droit",null,"Transport et Logistique",null,null,null,null,null,{"$f":"IF(Organisme!C26=\"\",\"\",Organisme!C26)","v":""},null,"Bahreïn"]
["Edition - Imprimerie - Livre",null,null,null,null,null,null,null,{"$f":"IF(Organisme!C27=\"\",\"\",Organisme!C27)","v":""},null,"Bangladesh"]
["Electronique - Informatique",null,null,null,null,null,null,null,{"$f":"IF(Organisme!C28=\"\",\"\",Organisme!C28)","v":""},null,"Barbade"]
["Enseignement - Formation",null,null,null,null,null,null,null,{"$f":"IF(Organisme!C29=\"\",\"\",Organisme!C29)","v":""},null,"Belgique"]
["Environnement - Nature - Nettoyage",null,null,null,null,null,null,null,{"$f":"IF(Organisme!C30=\"\",\"\",Organisme!C30)","v":""},null,"Belize"]
["Gestion - Audit - Ressources humaines",null,null,null,null,null,null,null,{"$f":"IF(Organisme!C31=\"\",\"\",Organisme!C31)","v":""},null,"Bénin"]
["Hôtellerie - Restauration - Tourisme",null,null,null,null,null,null,null,{"$f":"IF(Organisme!C29=\"\",\"\",Organisme!C29)","v":""},null,"Bhoutan"]
["Humanitaire",null,null,null,null,null,null,null,{"$f":"IF(Organisme!C30=\"\",\"\",Organisme!C30)","v":""},null,"Biélorussie"]
["Industrie - Matériaux",null,null,null,null,null,null,null,{"$f":"IF(Organisme!C31=\"\",\"\",Organisme!C31)","v":""},null,"Birmanie"]
["Lettres - Sciences humaines",null,null,null,null,null,null,null,{"$f":"IF(Organisme!C32=\"\",\"\",Organisme!C32)","v":""},null,"Bolivie"]
["Mécanique - Maintenance",null,null,null,null,null,null,null,{"$f":"IF(Organisme!C33=\"\",\"\",Organisme!C33)","v":""},null,"Bosnie-Herzégovine"]
["Numérique - Multimédia - Audiovisuel",null,null,null,null,null,null,null,{"$f":"IF(Organisme!C34=\"\",\"\",Organisme!C34)","v":""},null,"Botswana"]
["Santé",null,null,null,null,null,null,null,{"$f":"IF(Organisme!C35=\"\",\"\",Organisme!C35)","v":""},null,"Brésil"]
["Sciences - Maths - Physique",null,null,null,null,null,null,null,{"$f":"IF(Organisme!C36=\"\",\"\",Organisme!C36)","v":""},null,"Brunei"]
["Secrétariat - Accueil",null,null,null,null,null,null,null,{"$f":"IF(Organisme!C37=\"\",\"\",Organisme!C37)","v":""},null,"Bulgarie"]
["Social - Services à la personne",null,null,null,null,null,null,null,{"$f":"IF(Organisme!C38=\"\",\"\",Organisme!C38)","v":""},null,"Burkina Faso"]
["Soins - Esthétique - Coiffure",null,null,null,null,null,null,null,{"$f":"IF(Organisme!C39=\"\",\"\",Organisme!C39)","v":""},null,"Burundi"]
["Sport - Animation",null,null,null,null,null,null,null,{"$f":"IF(Organisme!C40=\"\",\"\",Organisme!C40)","v":""},null,"Cambodge"]
["Transport - Logistique",null,null,null,null,null,null,null,{"$f":"IF(Organisme!C41=\"\",\"\",Organisme!C41)","v":""},null,"Cameroun"]
[null,null,null,null,null,null,null,null,{"$f":"IF(Organisme!C42=\"\",\"\",Organisme!C42)","v":""},null,"Canada"]
[null,null,null,null,null,null,null,null,{"$f":"IF(Organisme!C43=\"\",\"\",Organisme!C43)","v":""},null,"Cap-Vert"]
[null,null,null,null,null,null,null,null,{"$f":"IF(Organisme!C44=\"\",\"\",Organisme!C44)","v":""},null,"Chili"]
[null,null,null,null,null,null,null,null,{"$f":"IF(Organisme!C45=\"\",\"\",Organisme!C45)","v":""},null,"Chine"]
[null,null,null,null,null,null,null,null,{"$f":"IF(Organisme!C46=\"\",\"\",Organisme!C46)","v":""},null,"Chypre"]
[null,null,null,null,null,null,null,null,{"$f":"IF(Organisme!C47=\"\",\"\",Organisme!C47)","v":""},null,"Colombie"]
[null,null,null,null,null,null,null,null,{"$f":"IF(Organisme!C48=\"\",\"\",Organisme!C48)","v":""},null,"Comores"]
[null,null,null,null,null,null,null,null,{"$f":"IF(Organisme!C49=\"\",\"\",Organisme!C49)","v":""},null,"Corée du Nord"]
[null,null,null,null,null,null,null,null,{"$f":"IF(Organisme!C50=\"\",\"\",Organisme!C50)","v":""},null,"Corée du Sud"]
[null,null,null,null,null,null,null,null,{"$f":"IF(Organisme!C51=\"\",\"\",Organisme!C51)","v":""},null,"Costa Rica"]
[null,null,null,null,null,null,null,null,{"$f":"IF(Organisme!C52=\"\",\"\",Organisme!C52)","v":""},null,"Côte d’Ivoire"]
[null,null,null,null,null,null,null,null,{"$f":"IF(Organisme!C53=\"\",\"\",Organisme!C53)","v":""},null,"Croatie"]
[null,null,null,null,null,null,null,null,{"$f":"IF(Organisme!C54=\"\",\"\",Organisme!C54)","v":""},null,"Cuba"]
[null,null,null,null,null,null,null,null,{"$f":"IF(Organisme!C55=\"\",\"\",Organisme!C55)","v":""},null,"Danemark"]
[null,null,null,null,null,null,null,null,{"$f":"IF(Organisme!C56=\"\",\"\",Organisme!C56)","v":""},null,"Djibouti"]
[null,null,null,null,null,null,null,null,{"$f":"IF(Organisme!C57=\"\",\"\",Organisme!C57)","v":""},null,"Dominique"]
[null,null,null,null,null,null,null,null,{"$f":"IF(Organisme!C58=\"\",\"\",Organisme!C58)","v":""},null,"Égypte"]
[null,null,null,null,null,null,null,null,{"$f":"IF(Organisme!C59=\"\",\"\",Organisme!C59)","v":""},null,"Émirats arabes unis"]
[null,null,null,null,null,null,null,null,{"$f":"IF(Organisme!C60=\"\",\"\",Organisme!C60)","v":""},null,"Équateur"]
[null,null,null,null,null,null,null,null,{"$f":"IF(Organisme!C61=\"\",\"\",Organisme!C61)","v":""},null,"Érythrée"]
[null,null,null,null,null,null,null,null,{"$f":"IF(Organisme!C62=\"\",\"\",Organisme!C62)","v":""},null,"Espagne"]
[null,null,null,null,null,null,null,null,{"$f":"IF(Organisme!C63=\"\",\"\",Organisme!C63)","v":""},null,"Estonie"]
[null,null,null,null,null,null,null,null,{"$f":"IF(Organisme!C64=\"\",\"\",Organisme!C64)","v":""},null,"États-Unis"]
[null,null,null,null,null,null,null,null,{"$f":"IF(Organisme!C65=\"\",\"\",Organisme!C65)","v":""},null,"Éthiopie"]
[null,null,null,null,null,null,null,null,{"$f":"IF(Organisme!C66=\"\",\"\",Organisme!C66)","v":""},null,"Fidji"]
[null,null,null,null,null,null,null,null,{"$f":"IF(Organisme!C67=\"\",\"\",Organisme!C67)","v":""},null,"Finlande"]
[null,null,null,null,null,null,null,null,{"$f":"IF(Organisme!C68=\"\",\"\",Organisme!C68)","v":""},null,"France"]
[null,null,null,null,null,null,null,null,{"$f":"IF(Organisme!C69=\"\",\"\",Organisme!C69)","v":""},null,"Gabon"]
[null,null,null,null,null,null,null,null,{"$f":"IF(Organisme!C70=\"\",\"\",Organisme!C70)","v":""},null,"Gambie"]
[null,null,null,null,null,null,null,null,{"$f":"IF(Organisme!C71=\"\",\"\",Organisme!C71)","v":""},null,"Géorgie"]
[null,null,null,null,null,null,null,null,{"$f":"IF(Organisme!C72=\"\",\"\",Organisme!C72)","v":""},null,"Ghana"]
[null,null,null,null,null,null,null,null,{"$f":"IF(Organisme!C73=\"\",\"\",Organisme!C73)","v":""},null,"Grèce"]
[null,null,null,null,null,null,null,null,{"$f":"IF(Organisme!C74=\"\",\"\",Organisme!C74)","v":""},null,"Grenade"]
[null,null,null,null,null,null,null,null,{"$f":"IF(Organisme!C75=\"\",\"\",Organisme!C75)","v":""},null,"Guatemala"]
[null,null,null,null,null,null,null,null,{"$f":"IF(Organisme!C76=\"\",\"\",Organisme!C76)","v":""},null,"Guinée"]
[null,null,null,null,null,null,null,null,{"$f":"IF(Organisme!C77=\"\",\"\",Organisme!C77)","v":""},null,"Guinée équatoriale"]
[null,null,null,null,null,null,null,null,{"$f":"IF(Organisme!C78=\"\",\"\",Organisme!C78)","v":""},null,"Guinée-Bissau"]
[null,null,null,null,null,null,null,null,{"$f":"IF(Organisme!C79=\"\",\"\",Organisme!C79)","v":""},null,"Guyana"]
[null,null,null,null,null,null,null,null,{"$f":"IF(Organisme!C80=\"\",\"\",Organisme!C80)","v":""},null,"Haïti"]
[null,null,null,null,null,null,null,null,{"$f":"IF(Organisme!C81=\"\",\"\",Organisme!C81)","v":""},null,"Honduras"]
[null,null,null,null,null,null,null,null,{"$f":"IF(Organisme!C82=\"\",\"\",Organisme!C82)","v":""},null,"Hongrie"]
[null,null,null,null,null,null,null,null,{"$f":"IF(Organisme!C83=\"\",\"\",Organisme!C83)","v":""},null,"Îles Cook"]
[null,null,null,null,null,null,null,null,{"$f":"IF(Organisme!C84=\"\",\"\",Organisme!C84)","v":""},null,"Îles Marshall"]
[null,null,null,null,null,null,null,null,{"$f":"IF(Organisme!C85=\"\",\"\",Organisme!C85)","v":""},null,"Inde"]
[null,null,null,null,null,null,null,null,{"$f":"IF(Organisme!C86=\"\",\"\",Organisme!C86)","v":""},null,"Indonésie"]
[null,null,null,null,null,null,null,null,{"$f":"IF(Organisme!C87=\"\",\"\",Organisme!C87)","v":""},null,"Irak"]
[null,null,null,null,null,null,null,null,{"$f":"IF(Organisme!C88=\"\",\"\",Organisme!C88)","v":""},null,"Iran"]
[null,null,null,null,null,null,null,null,{"$f":"IF(Organisme!C89=\"\",\"\",Organisme!C89)","v":""},null,"Irlande"]
[null,null,null,null,null,null,null,null,{"$f":"IF(Organisme!C90=\"\",\"\",Organisme!C90)","v":""},null,"Islande"]
[null,null,null,null,null,null,null,null,{"$f":"IF(Organisme!C91=\"\",\"\",Organisme!C91)","v":""},null,"Israël"]
[null,null,null,null,null,null,null,null,{"$f":"IF(Organisme!C92=\"\",\"\",Organisme!C92)","v":""},null,"Italie"]
[null,null,null,null,null,null,null,null,{"$f":"IF(Organisme!C93=\"\",\"\",Organisme!C93)","v":""},null,"Jamaïque"]
[null,null,null,null,null,null,null,null,{"$f":"IF(Organisme!C94=\"\",\"\",Organisme!C94)","v":""},null,"Japon"]
[null,null,null,null,null,null,null,null,{"$f":"IF(Organisme!C95=\"\",\"\",Organisme!C95)","v":""},null,"Jordanie"]
[null,null,null,null,null,null,null,null,{"$f":"IF(Organisme!C96=\"\",\"\",Organisme!C96)","v":""},null,"Kazakhstan"]
[null,null,null,null,null,null,null,null,{"$f":"IF(Organisme!C97=\"\",\"\",Organisme!C97)","v":""},null,"Kenya"]
[null,null,null,null,null,null,null,null,{"$f":"IF(Organisme!C98=\"\",\"\",Organisme!C98)","v":""},null,"Kirghizistan"]
[null,null,null,null,null,null,null,null,{"$f":"IF(Organisme!C99=\"\",\"\",Organisme!C99)","v":""},null,"Kiribati"]
[null,null,null,null,null,null,null,null,{"$f":"IF(Organisme!C100=\"\",\"\",Organisme!C100)","v":""},null,"Koweït"]
[null,null,null,null,null,null,null,null,{"$f":"IF(Organisme!C101=\"\",\"\",Organisme!C101)","v":""},null,"Laos"]
[null,null,null,null,null,null,null,null,{"$f":"IF(Organisme!C102=\"\",\"\",Organisme!C102)","v":""},null,"Lesotho"]
[null,null,null,null,null,null,null,null,{"$f":"IF(Organisme!C103=\"\",\"\",Organisme!C103)","v":""},null,"Lettonie"]
[null,null,null,null,null,null,null,null,{"$f":"IF(Organisme!C104=\"\",\"\",Organisme!C104)","v":""},null,"Liban"]
[null,null,null,null,null,null,null,null,{"$f":"IF(Organisme!C105=\"\",\"\",Organisme!C105)","v":""},null,"Liberia"]
[null,null,null,null,null,null,null,null,{"$f":"IF(Organisme!C106=\"\",\"\",Organisme!C106)","v":""},null,"Libye"]
[null,null,null,null,null,null,null,null,{"$f":"IF(Organisme!C107=\"\",\"\",Organisme!C107)","v":""},null,"Liechtenstein"]
[null,null,null,null,null,null,null,null,{"$f":"IF(Organisme!C108=\"\",\"\",Organisme!C108)","v":""},null,"Lituanie"]
[null,null,null,null,null,null,null,null,{"$f":"IF(Organisme!C109=\"\",\"\",Organisme!C109)","v":""},null,"Luxembourg"]
[null,null,null,null,null,null,null,null,{"$f":"IF(Organisme!C110=\"\",\"\",Organisme!C110)","v":""},null,"Macédoine"]
[null,null,null,null,null,null,null,null,{"$f":"IF(Organisme!C111=\"\",\"\",Organisme!C111)","v":""},null,"Madagascar"]
[null,null,null,null,null,null,null,null,{"$f":"IF(Organisme!C112=\"\",\"\",Organisme!C112)","v":""},null,"Malaisie"]
[null,null,null,null,null,null,null,null,{"$f":"IF(Organisme!C113=\"\",\"\",Organisme!C113)","v":""},null,"Malawi"]
[null,null,null,null,null,null,null,null,{"$f":"IF(Organisme!C114=\"\",\"\",Organisme!C114)","v":""},null,"Maldives"]
[null,null,null,null,null,null,null,null,{"$f":"IF(Organisme!C115=\"\",\"\",Organisme!C115)","v":""},null,"Mali"]
[null,null,null,null,null,null,null,null,{"$f":"IF(Organisme!C116=\"\",\"\",Organisme!C116)","v":""},null,"Malte"]
[null,null,null,null,null,null,null,null,{"$f":"IF(Organisme!C117=\"\",\"\",Organisme!C117)","v":""},null,"Maroc"]
[null,null,null,null,null,null,null,null,{"$f":"IF(Organisme!C118=\"\",\"\",Organisme!C118)","v":""},null,"Maurice"]
[null,null,null,null,null,null,null,null,{"$f":"IF(Organisme!C119=\"\",\"\",Organisme!C119)","v":""},null,"Mauritanie"]
[null,null,null,null,null,null,null,null,{"$f":"IF(Organisme!C120=\"\",\"\",Organisme!C120)","v":""},null,"Mexique"]
[null,null,null,null,null,null,null,null,{"$f":"IF(Organisme!C121=\"\",\"\",Organisme!C121)","v":""},null,"Micronésie"]
[null,null,null,null,null,null,null,null,{"$f":"IF(Organisme!C122=\"\",\"\",Organisme!C122)","v":""},null,"Moldavie"]
[null,null,null,null,null,null,null,null,{"$f":"IF(Organisme!C123=\"\",\"\",Organisme!C123)","v":""},null,"Monaco"]
[null,null,null,null,null,null,null,null,{"$f":"IF(Organisme!C124=\"\",\"\",Organisme!C124)","v":""},null,"Mongolie"]
[null,null,null,null,null,null,null,null,{"$f":"IF(Organisme!C125=\"\",\"\",Organisme!C125)","v":""},null,"Monténégro"]
[null,null,null,null,null,null,null,null,{"$f":"IF(Organisme!C126=\"\",\"\",Organisme!C126)","v":""},null,"Mozambique"]
[null,null,null,null,null,null,null,null,{"$f":"IF(Organisme!C127=\"\",\"\",Organisme!C127)","v":""},null,"Namibie"]
[null,null,null,null,null,null,null,null,{"$f":"IF(Organisme!C128=\"\",\"\",Organisme!C128)","v":""},null,"Nauru"]
[null,null,null,null,null,null,null,null,{"$f":"IF(Organisme!C129=\"\",\"\",Organisme!C129)","v":""},null,"Népal"]
[null,null,null,null,null,null,null,null,{"$f":"IF(Organisme!C130=\"\",\"\",Organisme!C130)","v":""},null,"Nicaragua"]
[null,null,null,null,null,null,null,null,{"$f":"IF(Organisme!C131=\"\",\"\",Organisme!C131)","v":""},null,"Niger"]
[null,null,null,null,null,null,null,null,{"$f":"IF(Organisme!C132=\"\",\"\",Organisme!C132)","v":""},null,"Nigeria"]
[null,null,null,null,null,null,null,null,{"$f":"IF(Organisme!C133=\"\",\"\",Organisme!C133)","v":""},null,"Niue"]
[null,null,null,null,null,null,null,null,{"$f":"IF(Organisme!C134=\"\",\"\",Organisme!C134)","v":""},null,"Norvège"]
[null,null,null,null,null,null,null,null,{"$f":"IF(Organisme!C135=\"\",\"\",Organisme!C135)","v":""},null,"Nouvelle-Zélande"]
[null,null,null,null,null,null,null,null,{"$f":"IF(Organisme!C136=\"\",\"\",Organisme!C136)","v":""},null,"Oman"]
[null,null,null,null,null,null,null,null,{"$f":"IF(Organisme!C137=\"\",\"\",Organisme!C137)","v":""},null,"Ouganda"]
[null,null,null,null,null,null,null,null,{"$f":"IF(Organisme!C138=\"\",\"\",Organisme!C138)","v":""},null,"Ouzbékistan"]
[null,null,null,null,null,null,null,null,{"$f":"IF(Organisme!C139=\"\",\"\",Organisme!C139)","v":""},null,"Pakistan"]
[null,null,null,null,null,null,null,null,{"$f":"IF(Organisme!C140=\"\",\"\",Organisme!C140)","v":""},null,"Palaos"]
[null,null,null,null,null,null,null,null,{"$f":"IF(Organisme!C141=\"\",\"\",Organisme!C141)","v":""},null,"Palestine"]
[null,null,null,null,null,null,null,null,{"$f":"IF(Organisme!C142=\"\",\"\",Organisme!C142)","v":""},null,"Panama"]
[null,null,null,null,null,null,null,null,{"$f":"IF(Organisme!C143=\"\",\"\",Organisme!C143)","v":""},null,"Papouasie-Nouvelle-Guinée"]
[null,null,null,null,null,null,null,null,{"$f":"IF(Organisme!C144=\"\",\"\",Organisme!C144)","v":""},null,"Paraguay"]
[null,null,null,null,null,null,null,null,{"$f":"IF(Organisme!C145=\"\",\"\",Organisme!C145)","v":""},null,"Pays-Bas"]
[null,null,null,null,null,null,null,null,{"$f":"IF(Organisme!C146=\"\",\"\",Organisme!C146)","v":""},null,"Pérou"]
[null,null,null,null,null,null,null,null,{"$f":"IF(Organisme!C147=\"\",\"\",Organisme!C147)","v":""},null,"Philippines"]
[null,null,null,null,null,null,null,null,{"$f":"IF(Organisme!C148=\"\",\"\",Organisme!C148)","v":""},null,"Pologne"]
[null,null,null,null,null,null,null,null,{"$f":"IF(Organisme!C149=\"\",\"\",Organisme!C149)","v":""},null,"Portugal"]
[null,null,null,null,null,null,null,null,{"$f":"IF(Organisme!C150=\"\",\"\",Organisme!C150)","v":""},null,"Qatar"]
[null,null,null,null,null,null,null,null,{"$f":"IF(Organisme!C151=\"\",\"\",Organisme!C151)","v":""},null,"République centrafricaine"]
[null,null,null,null,null,null,null,null,{"$f":"IF(Organisme!C152=\"\",\"\",Organisme!C152)","v":""},null,"République démocratique du Congo"]
[null,null,null,null,null,null,null,null,{"$f":"IF(Organisme!C153=\"\",\"\",Organisme!C153)","v":""},null,"République Dominicaine"]
[null,null,null,null,null,null,null,null,{"$f":"IF(Organisme!C154=\"\",\"\",Organisme!C154)","v":""},null,"République du Congo"]
[null,null,null,null,null,null,null,null,{"$f":"IF(Organisme!C155=\"\",\"\",Organisme!C155)","v":""},null,"République tchèque"]
[null,null,null,null,null,null,null,null,{"$f":"IF(Organisme!C156=\"\",\"\",Organisme!C156)","v":""},null,"Roumanie"]
[null,null,null,null,null,null,null,null,{"$f":"IF(Organisme!C157=\"\",\"\",Organisme!C157)","v":""},null,"Royaume-Uni"]
[null,null,null,null,null,null,null,null,{"$f":"IF(Organisme!C158=\"\",\"\",Organisme!C158)","v":""},null,"Russie"]
[null,null,null,null,null,null,null,null,{"$f":"IF(Organisme!C159=\"\",\"\",Organisme!C159)","v":""},null,"Rwanda"]
[null,null,null,null,null,null,null,null,{"$f":"IF(Organisme!C160=\"\",\"\",Organisme!C160)","v":""},null,"Saint-Kitts-et-Nevis"]
[null,null,null,null,null,null,null,null,{"$f":"IF(Organisme!C161=\"\",\"\",Organisme!C161)","v":""},null,"Saint-Vincent-et-les-Grenadines"]
[null,null,null,null,null,null,null,null,{"$f":"IF(Organisme!C162=\"\",\"\",Organisme!C162)","v":""},null,"Sainte-Lucie"]
[null,null,null,null,null,null,null,null,{"$f":"IF(Organisme!C163=\"\",\"\",Organisme!C163)","v":""},null,"Saint-Marin"]
[null,null,null,null,null,null,null,null,{"$f":"IF(Organisme!C164=\"\",\"\",Organisme!C164)","v":""},null,"Salomon"]
[null,null,null,null,null,null,null,null,{"$f":"IF(Organisme!C165=\"\",\"\",Organisme!C165)","v":""},null,"Salvador"]
[null,null,null,null,null,null,null,null,{"$f":"IF(Organisme!C166=\"\",\"\",Organisme!C166)","v":""},null,"Samoa"]
[null,null,null,null,null,null,null,null,{"$f":"IF(Organisme!C167=\"\",\"\",Organisme!C167)","v":""},null,"São Tomé-et-Principe"]
[null,null,null,null,null,null,null,null,{"$f":"IF(Organisme!C168=\"\",\"\",Organisme!C168)","v":""},null,"Sénégal"]
[null,null,null,null,null,null,null,null,{"$f":"IF(Organisme!C169=\"\",\"\",Organisme!C169)","v":""},null,"Serbie"]
[null,null,null,null,null,null,null,null,{"$f":"IF(Organisme!C170=\"\",\"\",Organisme!C170)","v":""},null,"Seychelles"]
[null,null,null,null,null,null,null,null,{"$f":"IF(Organisme!C171=\"\",\"\",Organisme!C171)","v":""},null,"Sierra Leone"]
[null,null,null,null,null,null,null,null,{"$f":"IF(Organisme!C172=\"\",\"\",Organisme!C172)","v":""},null,"Singapour"]
[null,null,null,null,null,null,null,null,{"$f":"IF(Organisme!C173=\"\",\"\",Organisme!C173)","v":""},null,"Slovaquie"]
[null,null,null,null,null,null,null,null,{"$f":"IF(Organisme!C174=\"\",\"\",Organisme!C174)","v":""},null,"Slovénie"]
[null,null,null,null,null,null,null,null,{"$f":"IF(Organisme!C175=\"\",\"\",Organisme!C175)","v":""},null,"Somalie"]
[null,null,null,null,null,null,null,null,{"$f":"IF(Organisme!C176=\"\",\"\",Organisme!C176)","v":""},null,"Soudan"]
[null,null,null,null,null,null,null,null,{"$f":"IF(Organisme!C177=\"\",\"\",Organisme!C177)","v":""},null,"Soudan du Sud"]
[null,null,null,null,null,null,null,null,{"$f":"IF(Organisme!C178=\"\",\"\",Organisme!C178)","v":""},null,"Sri Lanka"]
[null,null,null,null,null,null,null,null,{"$f":"IF(Organisme!C179=\"\",\"\",Organisme!C179)","v":""},null,"Suède"]
[null,null,null,null,null,null,null,null,{"$f":"IF(Organisme!C180=\"\",\"\",Organisme!C180)","v":""},null,"Suisse"]
[null,null,null,null,null,null,null,null,{"$f":"IF(Organisme!C181=\"\",\"\",Organisme!C181)","v":""},null,"Suriname"]
[null,null,null,null,null,null,null,null,{"$f":"IF(Organisme!C182=\"\",\"\",Organisme!C182)","v":""},null,"Swaziland"]
[null,null,null,null,null,null,null,null,{"$f":"IF(Organisme!C183=\"\",\"\",Organisme!C183)","v":""},null,"Syrie"]
[null,null,null,null,null,null,null,null,{"$f":"IF(Organisme!C184=\"\",\"\",Organisme!C184)","v":""},null,"Tadjikistan"]
[null,null,null,null,null,null,null,null,{"$f":"IF(Organisme!C185=\"\",\"\",Organisme!C185)","v":""},null,"Tanzanie"]
[null,null,null,null,null,null,null,null,{"$f":"IF(Organisme!C186=\"\",\"\",Organisme!C186)","v":""},null,"Tchad"]
[null,null,null,null,null,null,null,null,{"$f":"IF(Organisme!C187=\"\",\"\",Organisme!C187)","v":""},null,"Thaïlande"]
[null,null,null,null,null,null,null,null,{"$f":"IF(Organisme!C188=\"\",\"\",Organisme!C188)","v":""},null,"Timor oriental"]
[null,null,null,null,null,null,null,null,{"$f":"IF(Organisme!C189=\"\",\"\",Organisme!C189)","v":""},null,"Togo"]
[null,null,null,null,null,null,null,null,{"$f":"IF(Organisme!C190=\"\",\"\",Organisme!C190)","v":""},null,"Tonga"]
[null,null,null,null,null,null,null,null,{"$f":"IF(Organisme!C191=\"\",\"\",Organisme!C191)","v":""},null,"Trinité-et-Tobago"]
[null,null,null,null,null,null,null,null,{"$f":"IF(Organisme!C192=\"\",\"\",Organisme!C192)","v":""},null,"Tunisie"]
[null,null,null,null,null,null,null,null,{"$f":"IF(Organisme!C193=\"\",\"\",Organisme!C193)","v":""},null,"Turkménistan"]
[null,null,null,null,null,null,null,null,{"$f":"IF(Organisme!C194=\"\",\"\",Organisme!C194)","v":""},null,"Turquie"]
[null,null,null,null,null,null,null,null,{"$f":"IF(Organisme!C195=\"\",\"\",Organisme!C195)","v":""},null,"Tuvalu"]
[null,null,null,null,null,null,null,null,{"$f":"IF(Organisme!C196=\"\",\"\",Organisme!C196)","v":""},null,"Ukraine"]
[null,null,null,null,null,null,null,null,{"$f":"IF(Organisme!C197=\"\",\"\",Organisme!C197)","v":""},null,"Uruguay"]
[null,null,null,null,null,null,null,null,{"$f":"IF(Organisme!C198=\"\",\"\",Organisme!C198)","v":""},null,"Vanuatu"]
[null,null,null,null,null,null,null,null,{"$f":"IF(Organisme!C199=\"\",\"\",Organisme!C199)","v":""},null,"Vatican"]
[null,null,null,null,null,null,null,null,{"$f":"IF(Organisme!C200=\"\",\"\",Organisme!C200)","v":""},null,"Venezuela"]
[null,null,null,null,null,null,null,null,{"$f":"IF(Organisme!C201=\"\",\"\",Organisme!C201)","v":""},null,"Viêt Nam"]
[null,null,null,null,null,null,null,null,{"$f":"IF(Organisme!C202=\"\",\"\",Organisme!C202)","v":""},null,"Yémen"]
[null,null,null,null,null,null,null,null,{"$f":"IF(Organisme!C203=\"\",\"\",Organisme!C203)","v":""},null,"Zambie"]
[null,null,null,null,null,null,null,null,{"$f":"IF(Organisme!C204=\"\",\"\",Organisme!C204)","v":""},null,"Zimbabwe"]
[null,null,null,null,null,null,null,null,{"$f":"IF(Organisme!C205=\"\",\"\",Organisme!C205)","v":""}]
[null,null,null,null,null,null,null,null,{"$f":"IF(Organisme!C206=\"\",\"\",Organisme!C206)","v":""}]
[null,null,null,null,null,null,null,null,{"$f":"IF(Organisme!C207=\"\",\"\",Organisme!C207)","v":""}]
[null,null,null,null,null,null,null,null,{"$f":"IF(Organisme!C208=\"\",\"\",Organisme!C208)","v":""}]
[null,null,null,null,null,null,null,null,{"$f":"IF(Organisme!C209=\"\",\"\",Organisme!C209)","v":""}]
[null,null,null,null,null,null,null,null,{"$f":"IF(Organisme!C210=\"\",\"\",Organisme!C210)","v":""}]
[null,null,null,null,null,null,null,null,{"$f":"IF(Organisme!C211=\"\",\"\",Organisme!C211)","v":""}]
[null,null,null,null,null,null,null,null,{"$f":"IF(Organisme!C212=\"\",\"\",Organisme!C212)","v":""}]
[null,null,null,null,null,null,null,null,{"$f":"IF(Organisme!C213=\"\",\"\",Organisme!C213)","v":""}]
[null,null,null,null,null,null,null,null,{"$f":"IF(Organisme!C214=\"\",\"\",Organisme!C214)","v":""}]
[null,null,null,null,null,null,null,null,{"$f":"IF(Organisme!C215=\"\",\"\",Organisme!C215)","v":""}]
[null,null,null,null,null,null,null,null,{"$f":"IF(Organisme!C216=\"\",\"\",Organisme!C216)","v":""}]
[null,null,null,null,null,null,null,null,{"$f":"IF(Organisme!C217=\"\",\"\",Organisme!C217)","v":""}]
[null,null,null,null,null,null,null,null,{"$f":"IF(Organisme!C218=\"\",\"\",Organisme!C218)","v":""}]
[null,null,null,null,null,null,null,null,{"$f":"IF(Organisme!C219=\"\",\"\",Organisme!C219)","v":""}]
[null,null,null,null,null,null,null,null,{"$f":"IF(Organisme!C220=\"\",\"\",Organisme!C220)","v":""}]
[null,null,null,null,null,null,null,null,{"$f":"IF(Organisme!C221=\"\",\"\",Organisme!C221)","v":""}]
[null,null,null,null,null,null,null,null,{"$f":"IF(Organisme!C222=\"\",\"\",Organisme!C222)","v":""}]
[null,null,null,null,null,null,null,null,{"$f":"IF(Organisme!C223=\"\",\"\",Organisme!C223)","v":""}]
[null,null,null,null,null,null,null,null,{"$f":"IF(Organisme!C224=\"\",\"\",Organisme!C224)","v":""}]
[null,null,null,null,null,null,null,null,{"$f":"IF(Organisme!C225=\"\",\"\",Organisme!C225)","v":""}]
[null,null,null,null,null,null,null,null,{"$f":"IF(Organisme!C226=\"\",\"\",Organisme!C226)","v":""}]
[null,null,null,null,null,null,null,null,{"$f":"IF(Organisme!C227=\"\",\"\",Organisme!C227)","v":""}]
[null,null,null,null,null,null,null,null,{"$f":"IF(Organisme!C228=\"\",\"\",Organisme!C228)","v":""}]
[null,null,null,null,null,null,null,null,{"$f":"IF(Organisme!C229=\"\",\"\",Organisme!C229)","v":""}]
[null,null,null,null,null,null,null,null,{"$f":"IF(Organisme!C230=\"\",\"\",Organisme!C230)","v":""}]
[null,null,null,null,null,null,null,null,{"$f":"IF(Organisme!C231=\"\",\"\",Organisme!C231)","v":""}]
[null,null,null,null,null,null,null,null,{"$f":"IF(Organisme!C232=\"\",\"\",Organisme!C232)","v":""}]
[null,null,null,null,null,null,null,null,{"$f":"IF(Organisme!C233=\"\",\"\",Organisme!C233)","v":""}]
[null,null,null,null,null,null,null,null,{"$f":"IF(Organisme!C234=\"\",\"\",Organisme!C234)","v":""}]
[null,null,null,null,null,null,null,null,{"$f":"IF(Organisme!C235=\"\",\"\",Organisme!C235)","v":""}]
[null,null,null,null,null,null,null,null,{"$f":"IF(Organisme!C236=\"\",\"\",Organisme!C236)","v":""}]
[null,null,null,null,null,null,null,null,{"$f":"IF(Organisme!C237=\"\",\"\",Organisme!C237)","v":""}]
[null,null,null,null,null,null,null,null,{"$f":"IF(Organisme!C238=\"\",\"\",Organisme!C238)","v":""}]
[null,null,null,null,null,null,null,null,{"$f":"IF(Organisme!C239=\"\",\"\",Organisme!C239)","v":""}]
[null,null,null,null,null,null,null,null,{"$f":"IF(Organisme!C240=\"\",\"\",Organisme!C240)","v":""}]
[null,null,null,null,null,null,null,null,{"$f":"IF(Organisme!C241=\"\",\"\",Organisme!C241)","v":""}]
[null,null,null,null,null,null,null,null,{"$f":"IF(Organisme!C242=\"\",\"\",Organisme!C242)","v":""}]
[null,null,null,null,null,null,null,null,{"$f":"IF(Organisme!C243=\"\",\"\",Organisme!C243)","v":""}]
[null,null,null,null,null,null,null,null,{"$f":"IF(Organisme!C244=\"\",\"\",Organisme!C244)","v":""}]
[null,null,null,null,null,null,null,null,{"$f":"IF(Organisme!C245=\"\",\"\",Organisme!C245)","v":""}]
[null,null,null,null,null,null,null,null,{"$f":"IF(Organisme!C246=\"\",\"\",Organisme!C246)","v":""}]
[null,null,null,null,null,null,null,null,{"$f":"IF(Organisme!C247=\"\",\"\",Organisme!C247)","v":""}]
[null,null,null,null,null,null,null,null,{"$f":"IF(Organisme!C248=\"\",\"\",Organisme!C248)","v":""}]
[null,null,null,null,null,null,null,null,{"$f":"IF(Organisme!C249=\"\",\"\",Organisme!C249)","v":""}]
[null,null,null,null,null,null,null,null,{"$f":"IF(Organisme!C250=\"\",\"\",Organisme!C250)","v":""}]
[null,null,null,null,null,null,null,null,{"$f":"IF(Organisme!C251=\"\",\"\",Organisme!C251)","v":""}]
[null,null,null,null,null,null,null,null,{"$f":"IF(Organisme!C252=\"\",\"\",Organisme!C252)","v":""}]
[null,null,null,null,null,null,null,null,{"$f":"IF(Organisme!C253=\"\",\"\",Organisme!C253)","v":""}]
[null,null,null,null,null,null,null,null,{"$f":"IF(Organisme!C254=\"\",\"\",Organisme!C254)","v":""}]
[null,null,null,null,null,null,null,null,{"$f":"IF(Organisme!C255=\"\",\"\",Organisme!C255)","v":""}]
[null,null,null,null,null,null,null,null,{"$f":"IF(Organisme!C256=\"\",\"\",Organisme!C256)","v":""}]
[null,null,null,null,null,null,null,null,{"$f":"IF(Organisme!C257=\"\",\"\",Organisme!C257)","v":""}]
[null,null,null,null,null,null,null,null,{"$f":"IF(Organisme!C258=\"\",\"\",Organisme!C258)","v":""}]
[null,null,null,null,null,null,null,null,{"$f":"IF(Organisme!C259=\"\",\"\",Organisme!C259)","v":""}]
[null,null,null,null,null,null,null,null,{"$f":"IF(Organisme!C260=\"\",\"\",Organisme!C260)","v":""}]
[null,null,null,null,null,null,null,null,{"$f":"IF(Organisme!C261=\"\",\"\",Organisme!C261)","v":""}]
[null,null,null,null,null,null,null,null,{"$f":"IF(Organisme!C262=\"\",\"\",Organisme!C262)","v":""}]
[null,null,null,null,null,null,null,null,{"$f":"IF(Organisme!C263=\"\",\"\",Organisme!C263)","v":""}]
[null,null,null,null,null,null,null,null,{"$f":"IF(Organisme!C264=\"\",\"\",Organisme!C264)","v":""}]
[null,null,null,null,null,null,null,null,{"$f":"IF(Organisme!C265=\"\",\"\",Organisme!C265)","v":""}]
[null,null,null,null,null,null,null,null,{"$f":"IF(Organisme!C266=\"\",\"\",Organisme!C266)","v":""}]
[null,null,null,null,null,null,null,null,{"$f":"IF(Organisme!C267=\"\",\"\",Organisme!C267)","v":""}]
[null,null,null,null,null,null,null,null,{"$f":"IF(Organisme!C268=\"\",\"\",Organisme!C268)","v":""}]
[null,null,null,null,null,null,null,null,{"$f":"IF(Organisme!C269=\"\",\"\",Organisme!C269)","v":""}]
[null,null,null,null,null,null,null,null,{"$f":"IF(Organisme!C270=\"\",\"\",Organisme!C270)","v":""}]
[null,null,null,null,null,null,null,null,{"$f":"IF(Organisme!C271=\"\",\"\",Organisme!C271)","v":""}]
[null,null,null,null,null,null,null,null,{"$f":"IF(Organisme!C272=\"\",\"\",Organisme!C272)","v":""}]
[null,null,null,null,null,null,null,null,{"$f":"IF(Organisme!C273=\"\",\"\",Organisme!C273)","v":""}]
[null,null,null,null,null,null,null,null,{"$f":"IF(Organisme!C274=\"\",\"\",Organisme!C274)","v":""}]
[null,null,null,null,null,null,null,null,{"$f":"IF(Organisme!C275=\"\",\"\",Organisme!C275)","v":""}]
[null,null,null,null,null,null,null,null,{"$f":"IF(Organisme!C276=\"\",\"\",Organisme!C276)","v":""}]
[null,null,null,null,null,null,null,null,{"$f":"IF(Organisme!C277=\"\",\"\",Organisme!C277)","v":""}]
[null,null,null,null,null,null,null,null,{"$f":"IF(Organisme!C278=\"\",\"\",Organisme!C278)","v":""}]
[null,null,null,null,null,null,null,null,{"$f":"IF(Organisme!C279=\"\",\"\",Organisme!C279)","v":""}]
[null,null,null,null,null,null,null,null,{"$f":"IF(Organisme!C280=\"\",\"\",Organisme!C280)","v":""}]
[null,null,null,null,null,null,null,null,{"$f":"IF(Organisme!C281=\"\",\"\",Organisme!C281)","v":""}]
[null,null,null,null,null,null,null,null,{"$f":"IF(Organisme!C282=\"\",\"\",Organisme!C282)","v":""}]
[null,null,null,null,null,null,null,null,{"$f":"IF(Organisme!C283=\"\",\"\",Organisme!C283)","v":""}]
[null,null,null,null,null,null,null,null,{"$f":"IF(Organisme!C284=\"\",\"\",Organisme!C284)","v":""}]
[null,null,null,null,null,null,null,null,{"$f":"IF(Organisme!C285=\"\",\"\",Organisme!C285)","v":""}]
[null,null,null,null,null,null,null,null,{"$f":"IF(Organisme!C286=\"\",\"\",Organisme!C286)","v":""}]
[null,null,null,null,null,null,null,null,{"$f":"IF(Organisme!C287=\"\",\"\",Organisme!C287)","v":""}]
[null,null,null,null,null,null,null,null,{"$f":"IF(Organisme!C288=\"\",\"\",Organisme!C288)","v":""}]
[null,null,null,null,null,null,null,null,{"$f":"IF(Organisme!C289=\"\",\"\",Organisme!C289)","v":""}]
[null,null,null,null,null,null,null,null,{"$f":"IF(Organisme!C290=\"\",\"\",Organisme!C290)","v":""}]
[null,null,null,null,null,null,null,null,{"$f":"IF(Organisme!C291=\"\",\"\",Organisme!C291)","v":""}]
[null,null,null,null,null,null,null,null,{"$f":"IF(Organisme!C292=\"\",\"\",Organisme!C292)","v":""}]
[null,null,null,null,null,null,null,null,{"$f":"IF(Organisme!C293=\"\",\"\",Organisme!C293)","v":""}]
[null,null,null,null,null,null,null,null,{"$f":"IF(Organisme!C294=\"\",\"\",Organisme!C294)","v":""}]
[null,null,null,null,null,null,null,null,{"$f":"IF(Organisme!C295=\"\",\"\",Organisme!C295)","v":""}]
[null,null,null,null,null,null,null,null,{"$f":"IF(Organisme!C296=\"\",\"\",Organisme!C296)","v":""}]
[null,null,null,null,null,null,null,null,{"$f":"IF(Organisme!C297=\"\",\"\",Organisme!C297)","v":""}]
[null,null,null,null,null,null,null,null,{"$f":"IF(Organisme!C298=\"\",\"\",Organisme!C298)","v":""}]
[null,null,null,null,null,null,null,null,{"$f":"IF(Organisme!C299=\"\",\"\",Organisme!C299)","v":""}]
[null,null,null,null,null,null,null,null,{"$f":"IF(Organisme!C300=\"\",\"\",Organisme!C300)","v":""}]
[null,null,null,null,null,null,null,null,{"$f":"IF(Organisme!C301=\"\",\"\",Organisme!C301)","v":""}]
[null,null,null,null,null,null,null,null,{"$f":"IF(Organisme!C302=\"\",\"\",Organisme!C302)","v":""}]
[null,null,null,null,null,null,null,null,{"$f":"IF(Organisme!C303=\"\",\"\",Organisme!C303)","v":""}]
[null,null,null,null,null,null,null,null,{"$f":"IF(Organisme!C304=\"\",\"\",Organisme!C304)","v":""}]
[null,null,null,null,null,null,null,null,{"$f":"IF(Organisme!C305=\"\",\"\",Organisme!C305)","v":""}]
[null,null,null,null,null,null,null,null,{"$f":"IF(Organisme!C306=\"\",\"\",Organisme!C306)","v":""}]
[null,null,null,null,null,null,null,null,{"$f":"IF(Organisme!C307=\"\",\"\",Organisme!C307)","v":""}]
[null,null,null,null,null,null,null,null,{"$f":"IF(Organisme!C308=\"\",\"\",Organisme!C308)","v":""}]
[null,null,null,null,null,null,null,null,{"$f":"IF(Organisme!C309=\"\",\"\",Organisme!C309)","v":""}]
[null,null,null,null,null,null,null,null,{"$f":"IF(Organisme!C310=\"\",\"\",Organisme!C310)","v":""}]
[null,null,null,null,null,null,null,null,{"$f":"IF(Organisme!C311=\"\",\"\",Organisme!C311)","v":""}]
[null,null,null,null,null,null,null,null,{"$f":"IF(Organisme!C312=\"\",\"\",Organisme!C312)","v":""}]
[null,null,null,null,null,null,null,null,{"$f":"IF(Organisme!C313=\"\",\"\",Organisme!C313)","v":""}]
[null,null,null,null,null,null,null,null,{"$f":"IF(Organisme!C314=\"\",\"\",Organisme!C314)","v":""}]
[null,null,null,null,null,null,null,null,{"$f":"IF(Organisme!C315=\"\",\"\",Organisme!C315)","v":""}]
[null,null,null,null,null,null,null,null,{"$f":"IF(Organisme!C316=\"\",\"\",Organisme!C316)","v":""}]
[null,null,null,null,null,null,null,null,{"$f":"IF(Organisme!C317=\"\",\"\",Organisme!C317)","v":""}]
[null,null,null,null,null,null,null,null,{"$f":"IF(Organisme!C318=\"\",\"\",Organisme!C318)","v":""}]
[null,null,null,null,null,null,null,null,{"$f":"IF(Organisme!C319=\"\",\"\",Organisme!C319)","v":""}]
[null,null,null,null,null,null,null,null,{"$f":"IF(Organisme!C320=\"\",\"\",Organisme!C320)","v":""}]
[null,null,null,null,null,null,null,null,{"$f":"IF(Organisme!C321=\"\",\"\",Organisme!C321)","v":""}]
[null,null,null,null,null,null,null,null,{"$f":"IF(Organisme!C322=\"\",\"\",Organisme!C322)","v":""}]
[null,null,null,null,null,null,null,null,{"$f":"IF(Organisme!C323=\"\",\"\",Organisme!C323)","v":""}]
[null,null,null,null,null,null,null,null,{"$f":"IF(Organisme!C324=\"\",\"\",Organisme!C324)","v":""}]
[null,null,null,null,null,null,null,null,{"$f":"IF(Organisme!C325=\"\",\"\",Organisme!C325)","v":""}]
[null,null,null,null,null,null,null,null,{"$f":"IF(Organisme!C326=\"\",\"\",Organisme!C326)","v":""}]
[null,null,null,null,null,null,null,null,{"$f":"IF(Organisme!C327=\"\",\"\",Organisme!C327)","v":""}]
[null,null,null,null,null,null,null,null,{"$f":"IF(Organisme!C328=\"\",\"\",Organisme!C328)","v":""}]
[null,null,null,null,null,null,null,null,{"$f":"IF(Organisme!C329=\"\",\"\",Organisme!C329)","v":""}]
[null,null,null,null,null,null,null,null,{"$f":"IF(Organisme!C330=\"\",\"\",Organisme!C330)","v":""}]
[null,null,null,null,null,null,null,null,{"$f":"IF(Organisme!C331=\"\",\"\",Organisme!C331)","v":""}]
[null,null,null,null,null,null,null,null,{"$f":"IF(Organisme!C332=\"\",\"\",Organisme!C332)","v":""}]
[null,null,null,null,null,null,null,null,{"$f":"IF(Organisme!C333=\"\",\"\",Organisme!C333)","v":""}]
[null,null,null,null,null,null,null,null,{"$f":"IF(Organisme!C334=\"\",\"\",Organisme!C334)","v":""}]
[null,null,null,null,null,null,null,null,{"$f":"IF(Organisme!C335=\"\",\"\",Organisme!C335)","v":""}]
[null,null,null,null,null,null,null,null,{"$f":"IF(Organisme!C336=\"\",\"\",Organisme!C336)","v":""}]
[null,null,null,null,null,null,null,null,{"$f":"IF(Organisme!C337=\"\",\"\",Organisme!C337)","v":""}]
[null,null,null,null,null,null,null,null,{"$f":"IF(Organisme!C338=\"\",\"\",Organisme!C338)","v":""}]
[null,null,null,null,null,null,null,null,{"$f":"IF(Organisme!C339=\"\",\"\",Organisme!C339)","v":""}]
[null,null,null,null,null,null,null,null,{"$f":"IF(Organisme!C340=\"\",\"\",Organisme!C340)","v":""}]
[null,null,null,null,null,null,null,null,{"$f":"IF(Organisme!C341=\"\",\"\",Organisme!C341)","v":""}]
[null,null,null,null,null,null,null,null,{"$f":"IF(Organisme!C342=\"\",\"\",Organisme!C342)","v":""}]
[null,null,null,null,null,null,null,null,{"$f":"IF(Organisme!C343=\"\",\"\",Organisme!C343)","v":""}]
[null,null,null,null,null,null,null,null,{"$f":"IF(Organisme!C344=\"\",\"\",Organisme!C344)","v":""}]
[null,null,null,null,null,null,null,null,{"$f":"IF(Organisme!C345=\"\",\"\",Organisme!C345)","v":""}]
[null,null,null,null,null,null,null,null,{"$f":"IF(Organisme!C346=\"\",\"\",Organisme!C346)","v":""}]
[null,null,null,null,null,null,null,null,{"$f":"IF(Organisme!C347=\"\",\"\",Organisme!C347)","v":""}]
[null,null,null,null,null,null,null,null,{"$f":"IF(Organisme!C348=\"\",\"\",Organisme!C348)","v":""}]
[null,null,null,null,null,null,null,null,{"$f":"IF(Organisme!C349=\"\",\"\",Organisme!C349)","v":""}]
[null,null,null,null,null,null,null,null,{"$f":"IF(Organisme!C350=\"\",\"\",Organisme!C350)","v":""}]
[null,null,null,null,null,null,null,null,{"$f":"IF(Organisme!C351=\"\",\"\",Organisme!C351)","v":""}]
[null,null,null,null,null,null,null,null,{"$f":"IF(Organisme!C352=\"\",\"\",Organisme!C352)","v":""}]
[null,null,null,null,null,null,null,null,{"$f":"IF(Organisme!C353=\"\",\"\",Organisme!C353)","v":""}]
[null,null,null,null,null,null,null,null,{"$f":"IF(Organisme!C354=\"\",\"\",Organisme!C354)","v":""}]
[null,null,null,null,null,null,null,null,{"$f":"IF(Organisme!C355=\"\",\"\",Organisme!C355)","v":""}]
[null,null,null,null,null,null,null,null,{"$f":"IF(Organisme!C356=\"\",\"\",Organisme!C356)","v":""}]
[null,null,null,null,null,null,null,null,{"$f":"IF(Organisme!C357=\"\",\"\",Organisme!C357)","v":""}]
[null,null,null,null,null,null,null,null,{"$f":"IF(Organisme!C358=\"\",\"\",Organisme!C358)","v":""}]
[null,null,null,null,null,null,null,null,{"$f":"IF(Organisme!C359=\"\",\"\",Organisme!C359)","v":""}]
[null,null,null,null,null,null,null,null,{"$f":"IF(Organisme!C360=\"\",\"\",Organisme!C360)","v":""}]
[null,null,null,null,null,null,null,null,{"$f":"IF(Organisme!C361=\"\",\"\",Organisme!C361)","v":""}]
[null,null,null,null,null,null,null,null,{"$f":"IF(Organisme!C362=\"\",\"\",Organisme!C362)","v":""}]
[null,null,null,null,null,null,null,null,{"$f":"IF(Organisme!C363=\"\",\"\",Organisme!C363)","v":""}]
[null,null,null,null,null,null,null,null,{"$f":"IF(Organisme!C364=\"\",\"\",Organisme!C364)","v":""}]
[null,null,null,null,null,null,null,null,{"$f":"IF(Organisme!C365=\"\",\"\",Organisme!C365)","v":""}]
[null,null,null,null,null,null,null,null,{"$f":"IF(Organisme!C366=\"\",\"\",Organisme!C366)","v":""}]
[null,null,null,null,null,null,null,null,{"$f":"IF(Organisme!C367=\"\",\"\",Organisme!C367)","v":""}]
[null,null,null,null,null,null,null,null,{"$f":"IF(Organisme!C368=\"\",\"\",Organisme!C368)","v":""}]
[null,null,null,null,null,null,null,null,{"$f":"IF(Organisme!C369=\"\",\"\",Organisme!C369)","v":""}]
[null,null,null,null,null,null,null,null,{"$f":"IF(Organisme!C370=\"\",\"\",Organisme!C370)","v":""}]
[null,null,null,null,null,null,null,null,{"$f":"IF(Organisme!C371=\"\",\"\",Organisme!C371)","v":""}]
[null,null,null,null,null,null,null,null,{"$f":"IF(Organisme!C372=\"\",\"\",Organisme!C372)","v":""}]
[null,null,null,null,null,null,null,null,{"$f":"IF(Organisme!C373=\"\",\"\",Organisme!C373)","v":""}]
[null,null,null,null,null,null,null,null,{"$f":"IF(Organisme!C374=\"\",\"\",Organisme!C374)","v":""}]
[null,null,null,null,null,null,null,null,{"$f":"IF(Organisme!C375=\"\",\"\",Organisme!C375)","v":""}]
[null,null,null,null,null,null,null,null,{"$f":"IF(Organisme!C376=\"\",\"\",Organisme!C376)","v":""}]
[null,null,null,null,null,null,null,null,{"$f":"IF(Organisme!C377=\"\",\"\",Organisme!C377)","v":""}]
[null,null,null,null,null,null,null,null,{"$f":"IF(Organisme!C378=\"\",\"\",Organisme!C378)","v":""}]
[null,null,null,null,null,null,null,null,{"$f":"IF(Organisme!C379=\"\",\"\",Organisme!C379)","v":""}]
[null,null,null,null,null,null,null,null,{"$f":"IF(Organisme!C380=\"\",\"\",Organisme!C380)","v":""}]
[null,null,null,null,null,null,null,null,{"$f":"IF(Organisme!C381=\"\",\"\",Organisme!C381)","v":""}]
[null,null,null,null,null,null,null,null,{"$f":"IF(Organisme!C382=\"\",\"\",Organisme!C382)","v":""}]
[null,null,null,null,null,null,null,null,{"$f":"IF(Organisme!C383=\"\",\"\",Organisme!C383)","v":""}]
[null,null,null,null,null,null,null,null,{"$f":"IF(Organisme!C384=\"\",\"\",Organisme!C384)","v":""}]
[null,null,null,null,null,null,null,null,{"$f":"IF(Organisme!C385=\"\",\"\",Organisme!C385)","v":""}]
[null,null,null,null,null,null,null,null,{"$f":"IF(Organisme!C386=\"\",\"\",Organisme!C386)","v":""}]
[null,null,null,null,null,null,null,null,{"$f":"IF(Organisme!C387=\"\",\"\",Organisme!C387)","v":""}]
[null,null,null,null,null,null,null,null,{"$f":"IF(Organisme!C388=\"\",\"\",Organisme!C388)","v":""}]
[null,null,null,null,null,null,null,null,{"$f":"IF(Organisme!C389=\"\",\"\",Organisme!C389)","v":""}]
[null,null,null,null,null,null,null,null,{"$f":"IF(Organisme!C390=\"\",\"\",Organisme!C390)","v":""}]
[null,null,null,null,null,null,null,null,{"$f":"IF(Organisme!C391=\"\",\"\",Organisme!C391)","v":""}]
[null,null,null,null,null,null,null,null,{"$f":"IF(Organisme!C392=\"\",\"\",Organisme!C392)","v":""}]
[null,null,null,null,null,null,null,null,{"$f":"IF(Organisme!C393=\"\",\"\",Organisme!C393)","v":""}]
[null,null,null,null,null,null,null,null,{"$f":"IF(Organisme!C394=\"\",\"\",Organisme!C394)","v":""}]
[null,null,null,null,null,null,null,null,{"$f":"IF(Organisme!C395=\"\",\"\",Organisme!C395)","v":""}]
[null,null,null,null,null,null,null,null,{"$f":"IF(Organisme!C396=\"\",\"\",Organisme!C396)","v":""}]
[null,null,null,null,null,null,null,null,{"$f":"IF(Organisme!C397=\"\",\"\",Organisme!C397)","v":""}]
[null,null,null,null,null,null,null,null,{"$f":"IF(Organisme!C398=\"\",\"\",Organisme!C398)","v":""}]
[null,null,null,null,null,null,null,null,{"$f":"IF(Organisme!C399=\"\",\"\",Organisme!C399)","v":""}]
[null,null,null,null,null,null,null,null,{"$f":"IF(Organisme!C400=\"\",\"\",Organisme!C400)","v":""}]
[null,null,null,null,null,null,null,null,{"$f":"IF(Organisme!C401=\"\",\"\",Organisme!C401)","v":""}]
[null,null,null,null,null,null,null,null,{"$f":"IF(Organisme!C402=\"\",\"\",Organisme!C402)","v":""}]
[null,null,null,null,null,null,null,null,{"$f":"IF(Organisme!C403=\"\",\"\",Organisme!C403)","v":""}]
[null,null,null,null,null,null,null,null,{"$f":"IF(Organisme!C404=\"\",\"\",Organisme!C404)","v":""}]
[null,null,null,null,null,null,null,null,{"$f":"IF(Organisme!C405=\"\",\"\",Organisme!C405)","v":""}]
[null,null,null,null,null,null,null,null,{"$f":"IF(Organisme!C406=\"\",\"\",Organisme!C406)","v":""}]
[null,null,null,null,null,null,null,null,{"$f":"IF(Organisme!C407=\"\",\"\",Organisme!C407)","v":""}]
[null,null,null,null,null,null,null,null,{"$f":"IF(Organisme!C408=\"\",\"\",Organisme!C408)","v":""}]
[null,null,null,null,null,null,null,null,{"$f":"IF(Organisme!C409=\"\",\"\",Organisme!C409)","v":""}]
[null,null,null,null,null,null,null,null,{"$f":"IF(Organisme!C410=\"\",\"\",Organisme!C410)","v":""}]
[null,null,null,null,null,null,null,null,{"$f":"IF(Organisme!C411=\"\",\"\",Organisme!C411)","v":""}]
[null,null,null,null,null,null,null,null,{"$f":"IF(Organisme!C412=\"\",\"\",Organisme!C412)","v":""}]
[null,null,null,null,null,null,null,null,{"$f":"IF(Organisme!C413=\"\",\"\",Organisme!C413)","v":""}]
[null,null,null,null,null,null,null,null,{"$f":"IF(Organisme!C414=\"\",\"\",Organisme!C414)","v":""}]
[null,null,null,null,null,null,null,null,{"$f":"IF(Organisme!C415=\"\",\"\",Organisme!C415)","v":""}]
[null,null,null,null,null,null,null,null,{"$f":"IF(Organisme!C416=\"\",\"\",Organisme!C416)","v":""}]
[null,null,null,null,null,null,null,null,{"$f":"IF(Organisme!C417=\"\",\"\",Organisme!C417)","v":""}]
[null,null,null,null,null,null,null,null,{"$f":"IF(Organisme!C418=\"\",\"\",Organisme!C418)","v":""}]
[null,null,null,null,null,null,null,null,{"$f":"IF(Organisme!C419=\"\",\"\",Organisme!C419)","v":""}]
[null,null,null,null,null,null,null,null,{"$f":"IF(Organisme!C420=\"\",\"\",Organisme!C420)","v":""}]
[null,null,null,null,null,null,null,null,{"$f":"IF(Organisme!C421=\"\",\"\",Organisme!C421)","v":""}]
[null,null,null,null,null,null,null,null,{"$f":"IF(Organisme!C422=\"\",\"\",Organisme!C422)","v":""}]
[null,null,null,null,null,null,null,null,{"$f":"IF(Organisme!C423=\"\",\"\",Organisme!C423)","v":""}]
[null,null,null,null,null,null,null,null,{"$f":"IF(Organisme!C424=\"\",\"\",Organisme!C424)","v":""}]
[null,null,null,null,null,null,null,null,{"$f":"IF(Organisme!C425=\"\",\"\",Organisme!C425)","v":""}]
[null,null,null,null,null,null,null,null,{"$f":"IF(Organisme!C426=\"\",\"\",Organisme!C426)","v":""}]
[null,null,null,null,null,null,null,null,{"$f":"IF(Organisme!C427=\"\",\"\",Organisme!C427)","v":""}]
[null,null,null,null,null,null,null,null,{"$f":"IF(Organisme!C428=\"\",\"\",Organisme!C428)","v":""}]
[null,null,null,null,null,null,null,null,{"$f":"IF(Organisme!C429=\"\",\"\",Organisme!C429)","v":""}]
[null,null,null,null,null,null,null,null,{"$f":"IF(Organisme!C430=\"\",\"\",Organisme!C430)","v":""}]
[null,null,null,null,null,null,null,null,{"$f":"IF(Organisme!C431=\"\",\"\",Organisme!C431)","v":""}]
[null,null,null,null,null,null,null,null,{"$f":"IF(Organisme!C432=\"\",\"\",Organisme!C432)","v":""}]
[null,null,null,null,null,null,null,null,{"$f":"IF(Organisme!C433=\"\",\"\",Organisme!C433)","v":""}]
[null,null,null,null,null,null,null,null,{"$f":"IF(Organisme!C434=\"\",\"\",Organisme!C434)","v":""}]
[null,null,null,null,null,null,null,null,{"$f":"IF(Organisme!C435=\"\",\"\",Organisme!C435)","v":""}]
[null,null,null,null,null,null,null,null,{"$f":"IF(Organisme!C436=\"\",\"\",Organisme!C436)","v":""}]
[null,null,null,null,null,null,null,null,{"$f":"IF(Organisme!C437=\"\",\"\",Organisme!C437)","v":""}]
[null,null,null,null,null,null,null,null,{"$f":"IF(Organisme!C438=\"\",\"\",Organisme!C438)","v":""}]
[null,null,null,null,null,null,null,null,{"$f":"IF(Organisme!C439=\"\",\"\",Organisme!C439)","v":""}]
[null,null,null,null,null,null,null,null,{"$f":"IF(Organisme!C440=\"\",\"\",Organisme!C440)","v":""}]
[null,null,null,null,null,null,null,null,{"$f":"IF(Organisme!C441=\"\",\"\",Organisme!C441)","v":""}]
[null,null,null,null,null,null,null,null,{"$f":"IF(Organisme!C442=\"\",\"\",Organisme!C442)","v":""}]
[null,null,null,null,null,null,null,null,{"$f":"IF(Organisme!C443=\"\",\"\",Organisme!C443)","v":""}]
[null,null,null,null,null,null,null,null,{"$f":"IF(Organisme!C444=\"\",\"\",Organisme!C444)","v":""}]
[null,null,null,null,null,null,null,null,{"$f":"IF(Organisme!C445=\"\",\"\",Organisme!C445)","v":""}]
[null,null,null,null,null,null,null,null,{"$f":"IF(Organisme!C446=\"\",\"\",Organisme!C446)","v":""}]
[null,null,null,null,null,null,null,null,{"$f":"IF(Organisme!C447=\"\",\"\",Organisme!C447)","v":""}]
[null,null,null,null,null,null,null,null,{"$f":"IF(Organisme!C448=\"\",\"\",Organisme!C448)","v":""}]
[null,null,null,null,null,null,null,null,{"$f":"IF(Organisme!C449=\"\",\"\",Organisme!C449)","v":""}]
[null,null,null,null,null,null,null,null,{"$f":"IF(Organisme!C450=\"\",\"\",Organisme!C450)","v":""}]
[null,null,null,null,null,null,null,null,{"$f":"IF(Organisme!C451=\"\",\"\",Organisme!C451)","v":""}]
[null,null,null,null,null,null,null,null,{"$f":"IF(Organisme!C452=\"\",\"\",Organisme!C452)","v":""}]
[null,null,null,null,null,null,null,null,{"$f":"IF(Organisme!C453=\"\",\"\",Organisme!C453)","v":""}]
[null,null,null,null,null,null,null,null,{"$f":"IF(Organisme!C454=\"\",\"\",Organisme!C454)","v":""}]
[null,null,null,null,null,null,null,null,{"$f":"IF(Organisme!C455=\"\",\"\",Organisme!C455)","v":""}]
[null,null,null,null,null,null,null,null,{"$f":"IF(Organisme!C456=\"\",\"\",Organisme!C456)","v":""}]
[null,null,null,null,null,null,null,null,{"$f":"IF(Organisme!C457=\"\",\"\",Organisme!C457)","v":""}]
[null,null,null,null,null,null,null,null,{"$f":"IF(Organisme!C458=\"\",\"\",Organisme!C458)","v":""}]
[null,null,null,null,null,null,null,null,{"$f":"IF(Organisme!C459=\"\",\"\",Organisme!C459)","v":""}]
[null,null,null,null,null,null,null,null,{"$f":"IF(Organisme!C460=\"\",\"\",Organisme!C460)","v":""}]
[null,null,null,null,null,null,null,null,{"$f":"IF(Organisme!C461=\"\",\"\",Organisme!C461)","v":""}]
[null,null,null,null,null,null,null,null,{"$f":"IF(Organisme!C462=\"\",\"\",Organisme!C462)","v":""}]
[null,null,null,null,null,null,null,null,{"$f":"IF(Organisme!C463=\"\",\"\",Organisme!C463)","v":""}]
[null,null,null,null,null,null,null,null,{"$f":"IF(Organisme!C464=\"\",\"\",Organisme!C464)","v":""}]
[null,null,null,null,null,null,null,null,{"$f":"IF(Organisme!C465=\"\",\"\",Organisme!C465)","v":""}]
[null,null,null,null,null,null,null,null,{"$f":"IF(Organisme!C466=\"\",\"\",Organisme!C466)","v":""}]
[null,null,null,null,null,null,null,null,{"$f":"IF(Organisme!C467=\"\",\"\",Organisme!C467)","v":""}]
[null,null,null,null,null,null,null,null,{"$f":"IF(Organisme!C468=\"\",\"\",Organisme!C468)","v":""}]
[null,null,null,null,null,null,null,null,{"$f":"IF(Organisme!C469=\"\",\"\",Organisme!C469)","v":""}]
[null,null,null,null,null,null,null,null,{"$f":"IF(Organisme!C470=\"\",\"\",Organisme!C470)","v":""}]
[null,null,null,null,null,null,null,null,{"$f":"IF(Organisme!C471=\"\",\"\",Organisme!C471)","v":""}]
[null,null,null,null,null,null,null,null,{"$f":"IF(Organisme!C472=\"\",\"\",Organisme!C472)","v":""}]
[null,null,null,null,null,null,null,null,{"$f":"IF(Organisme!C473=\"\",\"\",Organisme!C473)","v":""}]
[null,null,null,null,null,null,null,null,{"$f":"IF(Organisme!C474=\"\",\"\",Organisme!C474)","v":""}]
[null,null,null,null,null,null,null,null,{"$f":"IF(Organisme!C475=\"\",\"\",Organisme!C475)","v":""}]
[null,null,null,null,null,null,null,null,{"$f":"IF(Organisme!C476=\"\",\"\",Organisme!C476)","v":""}]
[null,null,null,null,null,null,null,null,{"$f":"IF(Organisme!C477=\"\",\"\",Organisme!C477)","v":""}]
[null,null,null,null,null,null,null,null,{"$f":"IF(Organisme!C478=\"\",\"\",Organisme!C478)","v":""}]
[null,null,null,null,null,null,null,null,{"$f":"IF(Organisme!C479=\"\",\"\",Organisme!C479)","v":""}]
[null,null,null,null,null,null,null,null,{"$f":"IF(Organisme!C480=\"\",\"\",Organisme!C480)","v":""}]
[null,null,null,null,null,null,null,null,{"$f":"IF(Organisme!C481=\"\",\"\",Organisme!C481)","v":""}]
[null,null,null,null,null,null,null,null,{"$f":"IF(Organisme!C482=\"\",\"\",Organisme!C482)","v":""}]
[null,null,null,null,null,null,null,null,{"$f":"IF(Organisme!C483=\"\",\"\",Organisme!C483)","v":""}]
[null,null,null,null,null,null,null,null,{"$f":"IF(Organisme!C484=\"\",\"\",Organisme!C484)","v":""}]
[null,null,null,null,null,null,null,null,{"$f":"IF(Organisme!C485=\"\",\"\",Organisme!C485)","v":""}]
[null,null,null,null,null,null,null,null,{"$f":"IF(Organisme!C486=\"\",\"\",Organisme!C486)","v":""}]
[null,null,null,null,null,null,null,null,{"$f":"IF(Organisme!C487=\"\",\"\",Organisme!C487)","v":""}]
[null,null,null,null,null,null,null,null,{"$f":"IF(Organisme!C488=\"\",\"\",Organisme!C488)","v":""}]
[null,null,null,null,null,null,null,null,{"$f":"IF(Organisme!C489=\"\",\"\",Organisme!C489)","v":""}]
[null,null,null,null,null,null,null,null,{"$f":"IF(Organisme!C490=\"\",\"\",Organisme!C490)","v":""}]
[null,null,null,null,null,null,null,null,{"$f":"IF(Organisme!C491=\"\",\"\",Organisme!C491)","v":""}]
[null,null,null,null,null,null,null,null,{"$f":"IF(Organisme!C492=\"\",\"\",Organisme!C492)","v":""}]
[null,null,null,null,null,null,null,null,{"$f":"IF(Organisme!C493=\"\",\"\",Organisme!C493)","v":""}]
[null,null,null,null,null,null,null,null,{"$f":"IF(Organisme!C494=\"\",\"\",Organisme!C494)","v":""}]
[null,null,null,null,null,null,null,null,{"$f":"IF(Organisme!C495=\"\",\"\",Organisme!C495)","v":""}]
[null,null,null,null,null,null,null,null,{"$f":"IF(Organisme!C496=\"\",\"\",Organisme!C496)","v":""}]
[null,null,null,null,null,null,null,null,{"$f":"IF(Organisme!C497=\"\",\"\",Organisme!C497)","v":""}]
[null,null,null,null,null,null,null,null,{"$f":"IF(Organisme!C498=\"\",\"\",Organisme!C498)","v":""}]
[null,null,null,null,null,null,null,null,{"$f":"IF(Organisme!C499=\"\",\"\",Organisme!C499)","v":""}]
[null,null,null,null,null,null,null,null,{"$f":"IF(Organisme!C500=\"\",\"\",Organisme!C500)","v":""}]
[null,null,null,null,null,null,null,null,{"$f":"IF(Organisme!C501=\"\",\"\",Organisme!C501)","v":""}]
[null,null,null,null,null,null,null,null,{"$f":"IF(Organisme!C502=\"\",\"\",Organisme!C502)","v":""}]
[null,null,null,null,null,null,null,null,{"$f":"IF(Organisme!C503=\"\",\"\",Organisme!C503)","v":""}]
[null,null,null,null,null,null,null,null,{"$f":"IF(Organisme!C504=\"\",\"\",Organisme!C504)","v":""}]
[null,null,null,null,null,null,null,null,{"$f":"IF(Organisme!C505=\"\",\"\",Organisme!C505)","v":""}]
[null,null,null,null,null,null,null,null,{"$f":"IF(Organisme!C506=\"\",\"\",Organisme!C506)","v":""}]
[null,null,null,null,null,null,null,null,{"$f":"IF(Organisme!C507=\"\",\"\",Organisme!C507)","v":""}]
[null,null,null,null,null,null,null,null,{"$f":"IF(Organisme!C508=\"\",\"\",Organisme!C508)","v":""}]
[null,null,null,null,null,null,null,null,{"$f":"IF(Organisme!C509=\"\",\"\",Organisme!C509)","v":""}]
[null,null,null,null,null,null,null,null,{"$f":"IF(Organisme!C510=\"\",\"\",Organisme!C510)","v":""}]
[null,null,null,null,null,null,null,null,{"$f":"IF(Organisme!C511=\"\",\"\",Organisme!C511)","v":""}]
[null,null,null,null,null,null,null,null,{"$f":"IF(Organisme!C512=\"\",\"\",Organisme!C512)","v":""}]
[null,null,null,null,null,null,null,null,{"$f":"IF(Organisme!C513=\"\",\"\",Organisme!C513)","v":""}]
[null,null,null,null,null,null,null,null,{"$f":"IF(Organisme!C514=\"\",\"\",Organisme!C514)","v":""}]
[null,null,null,null,null,null,null,null,{"$f":"IF(Organisme!C515=\"\",\"\",Organisme!C515)","v":""}]
[null,null,null,null,null,null,null,null,{"$f":"IF(Organisme!C516=\"\",\"\",Organisme!C516)","v":""}]
[null,null,null,null,null,null,null,null,{"$f":"IF(Organisme!C517=\"\",\"\",Organisme!C517)","v":""}]
[null,null,null,null,null,null,null,null,{"$f":"IF(Organisme!C518=\"\",\"\",Organisme!C518)","v":""}]
[null,null,null,null,null,null,null,null,{"$f":"IF(Organisme!C519=\"\",\"\",Organisme!C519)","v":""}]
[null,null,null,null,null,null,null,null,{"$f":"IF(Organisme!C520=\"\",\"\",Organisme!C520)","v":""}]
[null,null,null,null,null,null,null,null,{"$f":"IF(Organisme!C521=\"\",\"\",Organisme!C521)","v":""}]
[null,null,null,null,null,null,null,null,{"$f":"IF(Organisme!C522=\"\",\"\",Organisme!C522)","v":""}]
[null,null,null,null,null,null,null,null,{"$f":"IF(Organisme!C523=\"\",\"\",Organisme!C523)","v":""}]
[null,null,null,null,null,null,null,null,{"$f":"IF(Organisme!C524=\"\",\"\",Organisme!C524)","v":""}]
[null,null,null,null,null,null,null,null,{"$f":"IF(Organisme!C525=\"\",\"\",Organisme!C525)","v":""}]
[null,null,null,null,null,null,null,null,{"$f":"IF(Organisme!C526=\"\",\"\",Organisme!C526)","v":""}]
[null,null,null,null,null,null,null,null,{"$f":"IF(Organisme!C527=\"\",\"\",Organisme!C527)","v":""}]
[null,null,null,null,null,null,null,null,{"$f":"IF(Organisme!C528=\"\",\"\",Organisme!C528)","v":""}]
[null,null,null,null,null,null,null,null,{"$f":"IF(Organisme!C529=\"\",\"\",Organisme!C529)","v":""}]
[null,null,null,null,null,null,null,null,{"$f":"IF(Organisme!C530=\"\",\"\",Organisme!C530)","v":""}]
[null,null,null,null,null,null,null,null,{"$f":"IF(Organisme!C531=\"\",\"\",Organisme!C531)","v":""}]
[null,null,null,null,null,null,null,null,{"$f":"IF(Organisme!C532=\"\",\"\",Organisme!C532)","v":""}]
[null,null,null,null,null,null,null,null,{"$f":"IF(Organisme!C533=\"\",\"\",Organisme!C533)","v":""}]
[null,null,null,null,null,null,null,null,{"$f":"IF(Organisme!C534=\"\",\"\",Organisme!C534)","v":""}]
[null,null,null,null,null,null,null,null,{"$f":"IF(Organisme!C535=\"\",\"\",Organisme!C535)","v":""}]
[null,null,null,null,null,null,null,null,{"$f":"IF(Organisme!C536=\"\",\"\",Organisme!C536)","v":""}]
[null,null,null,null,null,null,null,null,{"$f":"IF(Organisme!C537=\"\",\"\",Organisme!C537)","v":""}]
[null,null,null,null,null,null,null,null,{"$f":"IF(Organisme!C538=\"\",\"\",Organisme!C538)","v":""}]
[null,null,null,null,null,null,null,null,{"$f":"IF(Organisme!C539=\"\",\"\",Organisme!C539)","v":""}]
[null,null,null,null,null,null,null,null,{"$f":"IF(Organisme!C540=\"\",\"\",Organisme!C540)","v":""}]
[null,null,null,null,null,null,null,null,{"$f":"IF(Organisme!C541=\"\",\"\",Organisme!C541)","v":""}]
[null,null,null,null,null,null,null,null,{"$f":"IF(Organisme!C542=\"\",\"\",Organisme!C542)","v":""}]
[null,null,null,null,null,null,null,null,{"$f":"IF(Organisme!C543=\"\",\"\",Organisme!C543)","v":""}]
[null,null,null,null,null,null,null,null,{"$f":"IF(Organisme!C544=\"\",\"\",Organisme!C544)","v":""}]
[null,null,null,null,null,null,null,null,{"$f":"IF(Organisme!C545=\"\",\"\",Organisme!C545)","v":""}]
[null,null,null,null,null,null,null,null,{"$f":"IF(Organisme!C546=\"\",\"\",Organisme!C546)","v":""}]
[null,null,null,null,null,null,null,null,{"$f":"IF(Organisme!C547=\"\",\"\",Organisme!C547)","v":""}]
[null,null,null,null,null,null,null,null,{"$f":"IF(Organisme!C548=\"\",\"\",Organisme!C548)","v":""}]
[null,null,null,null,null,null,null,null,{"$f":"IF(Organisme!C549=\"\",\"\",Organisme!C549)","v":""}]
[null,null,null,null,null,null,null,null,{"$f":"IF(Organisme!C550=\"\",\"\",Organisme!C550)","v":""}]
[null,null,null,null,null,null,null,null,{"$f":"IF(Organisme!C551=\"\",\"\",Organisme!C551)","v":""}]
[null,null,null,null,null,null,null,null,{"$f":"IF(Organisme!C552=\"\",\"\",Organisme!C552)","v":""}]
[null,null,null,null,null,null,null,null,{"$f":"IF(Organisme!C553=\"\",\"\",Organisme!C553)","v":""}]
[null,null,null,null,null,null,null,null,{"$f":"IF(Organisme!C554=\"\",\"\",Organisme!C554)","v":""}]
[null,null,null,null,null,null,null,null,{"$f":"IF(Organisme!C555=\"\",\"\",Organisme!C555)","v":""}]
[null,null,null,null,null,null,null,null,{"$f":"IF(Organisme!C556=\"\",\"\",Organisme!C556)","v":""}]
[null,null,null,null,null,null,null,null,{"$f":"IF(Organisme!C557=\"\",\"\",Organisme!C557)","v":""}]
[null,null,null,null,null,null,null,null,{"$f":"IF(Organisme!C558=\"\",\"\",Organisme!C558)","v":""}]
[null,null,null,null,null,null,null,null,{"$f":"IF(Organisme!C559=\"\",\"\",Organisme!C559)","v":""}]
[null,null,null,null,null,null,null,null,{"$f":"IF(Organisme!C560=\"\",\"\",Organisme!C560)","v":""}]
[null,null,null,null,null,null,null,null,{"$f":"IF(Organisme!C561=\"\",\"\",Organisme!C561)","v":""}]
[null,null,null,null,null,null,null,null,{"$f":"IF(Organisme!C562=\"\",\"\",Organisme!C562)","v":""}]
[null,null,null,null,null,null,null,null,{"$f":"IF(Organisme!C563=\"\",\"\",Organisme!C563)","v":""}]
[null,null,null,null,null,null,null,null,{"$f":"IF(Organisme!C564=\"\",\"\",Organisme!C564)","v":""}]
[null,null,null,null,null,null,null,null,{"$f":"IF(Organisme!C565=\"\",\"\",Organisme!C565)","v":""}]
[null,null,null,null,null,null,null,null,{"$f":"IF(Organisme!C566=\"\",\"\",Organisme!C566)","v":""}]
[null,null,null,null,null,null,null,null,{"$f":"IF(Organisme!C567=\"\",\"\",Organisme!C567)","v":""}]
[null,null,null,null,null,null,null,null,{"$f":"IF(Organisme!C568=\"\",\"\",Organisme!C568)","v":""}]
[null,null,null,null,null,null,null,null,{"$f":"IF(Organisme!C569=\"\",\"\",Organisme!C569)","v":""}]
[null,null,null,null,null,null,null,null,{"$f":"IF(Organisme!C570=\"\",\"\",Organisme!C570)","v":""}]
[null,null,null,null,null,null,null,null,{"$f":"IF(Organisme!C571=\"\",\"\",Organisme!C571)","v":""}]
[null,null,null,null,null,null,null,null,{"$f":"IF(Organisme!C572=\"\",\"\",Organisme!C572)","v":""}]
[null,null,null,null,null,null,null,null,{"$f":"IF(Organisme!C573=\"\",\"\",Organisme!C573)","v":""}]
[null,null,null,null,null,null,null,null,{"$f":"IF(Organisme!C574=\"\",\"\",Organisme!C574)","v":""}]
[null,null,null,null,null,null,null,null,{"$f":"IF(Organisme!C575=\"\",\"\",Organisme!C575)","v":""}]
[null,null,null,null,null,null,null,null,{"$f":"IF(Organisme!C576=\"\",\"\",Organisme!C576)","v":""}]
[null,null,null,null,null,null,null,null,{"$f":"IF(Organisme!C577=\"\",\"\",Organisme!C577)","v":""}]
[null,null,null,null,null,null,null,null,{"$f":"IF(Organisme!C578=\"\",\"\",Organisme!C578)","v":""}]
[null,null,null,null,null,null,null,null,{"$f":"IF(Organisme!C579=\"\",\"\",Organisme!C579)","v":""}]
[null,null,null,null,null,null,null,null,{"$f":"IF(Organisme!C580=\"\",\"\",Organisme!C580)","v":""}]
[null,null,null,null,null,null,null,null,{"$f":"IF(Organisme!C581=\"\",\"\",Organisme!C581)","v":""}]
[null,null,null,null,null,null,null,null,{"$f":"IF(Organisme!C582=\"\",\"\",Organisme!C582)","v":""}]
[null,null,null,null,null,null,null,null,{"$f":"IF(Organisme!C583=\"\",\"\",Organisme!C583)","v":""}]
[null,null,null,null,null,null,null,null,{"$f":"IF(Organisme!C584=\"\",\"\",Organisme!C584)","v":""}]
[null,null,null,null,null,null,null,null,{"$f":"IF(Organisme!C585=\"\",\"\",Organisme!C585)","v":""}]
[null,null,null,null,null,null,null,null,{"$f":"IF(Organisme!C586=\"\",\"\",Organisme!C586)","v":""}]
[null,null,null,null,null,null,null,null,{"$f":"IF(Organisme!C587=\"\",\"\",Organisme!C587)","v":""}]
[null,null,null,null,null,null,null,null,{"$f":"IF(Organisme!C588=\"\",\"\",Organisme!C588)","v":""}]
[null,null,null,null,null,null,null,null,{"$f":"IF(Organisme!C589=\"\",\"\",Organisme!C589)","v":""}]
[null,null,null,null,null,null,null,null,{"$f":"IF(Organisme!C590=\"\",\"\",Organisme!C590)","v":""}]
[null,null,null,null,null,null,null,null,{"$f":"IF(Organisme!C591=\"\",\"\",Organisme!C591)","v":""}]
[null,null,null,null,null,null,null,null,{"$f":"IF(Organisme!C592=\"\",\"\",Organisme!C592)","v":""}]
[null,null,null,null,null,null,null,null,{"$f":"IF(Organisme!C593=\"\",\"\",Organisme!C593)","v":""}]
[null,null,null,null,null,null,null,null,{"$f":"IF(Organisme!C594=\"\",\"\",Organisme!C594)","v":""}]
[null,null,null,null,null,null,null,null,{"$f":"IF(Organisme!C595=\"\",\"\",Organisme!C595)","v":""}]
[null,null,null,null,null,null,null,null,{"$f":"IF(Organisme!C596=\"\",\"\",Organisme!C596)","v":""}]
[null,null,null,null,null,null,null,null,{"$f":"IF(Organisme!C597=\"\",\"\",Organisme!C597)","v":""}]
[null,null,null,null,null,null,null,null,{"$f":"IF(Organisme!C598=\"\",\"\",Organisme!C598)","v":""}]
[null,null,null,null,null,null,null,null,{"$f":"IF(Organisme!C599=\"\",\"\",Organisme!C599)","v":""}]
[null,null,null,null,null,null,null,null,{"$f":"IF(Organisme!C600=\"\",\"\",Organisme!C600)","v":""}]
[null,null,null,null,null,null,null,null,{"$f":"IF(Organisme!C601=\"\",\"\",Organisme!C601)","v":""}]
[null,null,null,null,null,null,null,null,{"$f":"IF(Organisme!C602=\"\",\"\",Organisme!C602)","v":""}]
[null,null,null,null,null,null,null,null,{"$f":"IF(Organisme!C603=\"\",\"\",Organisme!C603)","v":""}]
[null,null,null,null,null,null,null,null,{"$f":"IF(Organisme!C604=\"\",\"\",Organisme!C604)","v":""}]
[null,null,null,null,null,null,null,null,{"$f":"IF(Organisme!C605=\"\",\"\",Organisme!C605)","v":""}]
[null,null,null,null,null,null,null,null,{"$f":"IF(Organisme!C606=\"\",\"\",Organisme!C606)","v":""}]
[null,null,null,null,null,null,null,null,{"$f":"IF(Organisme!C607=\"\",\"\",Organisme!C607)","v":""}]
[null,null,null,null,null,null,null,null,{"$f":"IF(Organisme!C608=\"\",\"\",Organisme!C608)","v":""}]
[null,null,null,null,null,null,null,null,{"$f":"IF(Organisme!C609=\"\",\"\",Organisme!C609)","v":""}]
[null,null,null,null,null,null,null,null,{"$f":"IF(Organisme!C610=\"\",\"\",Organisme!C610)","v":""}]
[null,null,null,null,null,null,null,null,{"$f":"IF(Organisme!C611=\"\",\"\",Organisme!C611)","v":""}]
[null,null,null,null,null,null,null,null,{"$f":"IF(Organisme!C612=\"\",\"\",Organisme!C612)","v":""}]
[null,null,null,null,null,null,null,null,{"$f":"IF(Organisme!C613=\"\",\"\",Organisme!C613)","v":""}]
[null,null,null,null,null,null,null,null,{"$f":"IF(Organisme!C614=\"\",\"\",Organisme!C614)","v":""}]
[null,null,null,null,null,null,null,null,{"$f":"IF(Organisme!C615=\"\",\"\",Organisme!C615)","v":""}]
[null,null,null,null,null,null,null,null,{"$f":"IF(Organisme!C616=\"\",\"\",Organisme!C616)","v":""}]
[null,null,null,null,null,null,null,null,{"$f":"IF(Organisme!C617=\"\",\"\",Organisme!C617)","v":""}]
[null,null,null,null,null,null,null,null,{"$f":"IF(Organisme!C618=\"\",\"\",Organisme!C618)","v":""}]
[null,null,null,null,null,null,null,null,{"$f":"IF(Organisme!C619=\"\",\"\",Organisme!C619)","v":""}]
[null,null,null,null,null,null,null,null,{"$f":"IF(Organisme!C620=\"\",\"\",Organisme!C620)","v":""}]
[null,null,null,null,null,null,null,null,{"$f":"IF(Organisme!C621=\"\",\"\",Organisme!C621)","v":""}]
[null,null,null,null,null,null,null,null,{"$f":"IF(Organisme!C622=\"\",\"\",Organisme!C622)","v":""}]
[null,null,null,null,null,null,null,null,{"$f":"IF(Organisme!C623=\"\",\"\",Organisme!C623)","v":""}]
[null,null,null,null,null,null,null,null,{"$f":"IF(Organisme!C624=\"\",\"\",Organisme!C624)","v":""}]
[null,null,null,null,null,null,null,null,{"$f":"IF(Organisme!C625=\"\",\"\",Organisme!C625)","v":""}]
[null,null,null,null,null,null,null,null,{"$f":"IF(Organisme!C626=\"\",\"\",Organisme!C626)","v":""}]
[null,null,null,null,null,null,null,null,{"$f":"IF(Organisme!C627=\"\",\"\",Organisme!C627)","v":""}]
[null,null,null,null,null,null,null,null,{"$f":"IF(Organisme!C628=\"\",\"\",Organisme!C628)","v":""}]
[null,null,null,null,null,null,null,null,{"$f":"IF(Organisme!C629=\"\",\"\",Organisme!C629)","v":""}]
[null,null,null,null,null,null,null,null,{"$f":"IF(Organisme!C630=\"\",\"\",Organisme!C630)","v":""}]
[null,null,null,null,null,null,null,null,{"$f":"IF(Organisme!C631=\"\",\"\",Organisme!C631)","v":""}]
[null,null,null,null,null,null,null,null,{"$f":"IF(Organisme!C632=\"\",\"\",Organisme!C632)","v":""}]
[null,null,null,null,null,null,null,null,{"$f":"IF(Organisme!C633=\"\",\"\",Organisme!C633)","v":""}]
[null,null,null,null,null,null,null,null,{"$f":"IF(Organisme!C634=\"\",\"\",Organisme!C634)","v":""}]
[null,null,null,null,null,null,null,null,{"$f":"IF(Organisme!C635=\"\",\"\",Organisme!C635)","v":""}]
[null,null,null,null,null,null,null,null,{"$f":"IF(Organisme!C636=\"\",\"\",Organisme!C636)","v":""}]
[null,null,null,null,null,null,null,null,{"$f":"IF(Organisme!C637=\"\",\"\",Organisme!C637)","v":""}]
[null,null,null,null,null,null,null,null,{"$f":"IF(Organisme!C638=\"\",\"\",Organisme!C638)","v":""}]
[null,null,null,null,null,null,null,null,{"$f":"IF(Organisme!C639=\"\",\"\",Organisme!C639)","v":""}]
[null,null,null,null,null,null,null,null,{"$f":"IF(Organisme!C640=\"\",\"\",Organisme!C640)","v":""}]
[null,null,null,null,null,null,null,null,{"$f":"IF(Organisme!C641=\"\",\"\",Organisme!C641)","v":""}]
[null,null,null,null,null,null,null,null,{"$f":"IF(Organisme!C642=\"\",\"\",Organisme!C642)","v":""}]
[null,null,null,null,null,null,null,null,{"$f":"IF(Organisme!C643=\"\",\"\",Organisme!C643)","v":""}]
[null,null,null,null,null,null,null,null,{"$f":"IF(Organisme!C644=\"\",\"\",Organisme!C644)","v":""}]
[null,null,null,null,null,null,null,null,{"$f":"IF(Organisme!C645=\"\",\"\",Organisme!C645)","v":""}]
[null,null,null,null,null,null,null,null,{"$f":"IF(Organisme!C646=\"\",\"\",Organisme!C646)","v":""}]
[null,null,null,null,null,null,null,null,{"$f":"IF(Organisme!C647=\"\",\"\",Organisme!C647)","v":""}]
[null,null,null,null,null,null,null,null,{"$f":"IF(Organisme!C648=\"\",\"\",Organisme!C648)","v":""}]
[null,null,null,null,null,null,null,null,{"$f":"IF(Organisme!C649=\"\",\"\",Organisme!C649)","v":""}]
[null,null,null,null,null,null,null,null,{"$f":"IF(Organisme!C650=\"\",\"\",Organisme!C650)","v":""}]
[null,null,null,null,null,null,null,null,{"$f":"IF(Organisme!C651=\"\",\"\",Organisme!C651)","v":""}]
[null,null,null,null,null,null,null,null,{"$f":"IF(Organisme!C652=\"\",\"\",Organisme!C652)","v":""}]
[null,null,null,null,null,null,null,null,{"$f":"IF(Organisme!C653=\"\",\"\",Organisme!C653)","v":""}]
[null,null,null,null,null,null,null,null,{"$f":"IF(Organisme!C654=\"\",\"\",Organisme!C654)","v":""}]
[null,null,null,null,null,null,null,null,{"$f":"IF(Organisme!C655=\"\",\"\",Organisme!C655)","v":""}]
[null,null,null,null,null,null,null,null,{"$f":"IF(Organisme!C656=\"\",\"\",Organisme!C656)","v":""}]
[null,null,null,null,null,null,null,null,{"$f":"IF(Organisme!C657=\"\",\"\",Organisme!C657)","v":""}]
[null,null,null,null,null,null,null,null,{"$f":"IF(Organisme!C658=\"\",\"\",Organisme!C658)","v":""}]
[null,null,null,null,null,null,null,null,{"$f":"IF(Organisme!C659=\"\",\"\",Organisme!C659)","v":""}]
[null,null,null,null,null,null,null,null,{"$f":"IF(Organisme!C660=\"\",\"\",Organisme!C660)","v":""}]
[null,null,null,null,null,null,null,null,{"$f":"IF(Organisme!C661=\"\",\"\",Organisme!C661)","v":""}]
[null,null,null,null,null,null,null,null,{"$f":"IF(Organisme!C662=\"\",\"\",Organisme!C662)","v":""}]
[null,null,null,null,null,null,null,null,{"$f":"IF(Organisme!C663=\"\",\"\",Organisme!C663)","v":""}]
[null,null,null,null,null,null,null,null,{"$f":"IF(Organisme!C664=\"\",\"\",Organisme!C664)","v":""}]
[null,null,null,null,null,null,null,null,{"$f":"IF(Organisme!C665=\"\",\"\",Organisme!C665)","v":""}]
[null,null,null,null,null,null,null,null,{"$f":"IF(Organisme!C666=\"\",\"\",Organisme!C666)","v":""}]
[null,null,null,null,null,null,null,null,{"$f":"IF(Organisme!C667=\"\",\"\",Organisme!C667)","v":""}]
[null,null,null,null,null,null,null,null,{"$f":"IF(Organisme!C668=\"\",\"\",Organisme!C668)","v":""}]
[null,null,null,null,null,null,null,null,{"$f":"IF(Organisme!C669=\"\",\"\",Organisme!C669)","v":""}]
[null,null,null,null,null,null,null,null,{"$f":"IF(Organisme!C670=\"\",\"\",Organisme!C670)","v":""}]
[null,null,null,null,null,null,null,null,{"$f":"IF(Organisme!C671=\"\",\"\",Organisme!C671)","v":""}]
[null,null,null,null,null,null,null,null,{"$f":"IF(Organisme!C672=\"\",\"\",Organisme!C672)","v":""}]
[null,null,null,null,null,null,null,null,{"$f":"IF(Organisme!C673=\"\",\"\",Organisme!C673)","v":""}]
[null,null,null,null,null,null,null,null,{"$f":"IF(Organisme!C674=\"\",\"\",Organisme!C674)","v":""}]
[null,null,null,null,null,null,null,null,{"$f":"IF(Organisme!C675=\"\",\"\",Organisme!C675)","v":""}]
[null,null,null,null,null,null,null,null,{"$f":"IF(Organisme!C676=\"\",\"\",Organisme!C676)","v":""}]
[null,null,null,null,null,null,null,null,{"$f":"IF(Organisme!C677=\"\",\"\",Organisme!C677)","v":""}]
[null,null,null,null,null,null,null,null,{"$f":"IF(Organisme!C678=\"\",\"\",Organisme!C678)","v":""}]
[null,null,null,null,null,null,null,null,{"$f":"IF(Organisme!C679=\"\",\"\",Organisme!C679)","v":""}]
[null,null,null,null,null,null,null,null,{"$f":"IF(Organisme!C680=\"\",\"\",Organisme!C680)","v":""}]
[null,null,null,null,null,null,null,null,{"$f":"IF(Organisme!C681=\"\",\"\",Organisme!C681)","v":""}]
[null,null,null,null,null,null,null,null,{"$f":"IF(Organisme!C682=\"\",\"\",Organisme!C682)","v":""}]
[null,null,null,null,null,null,null,null,{"$f":"IF(Organisme!C683=\"\",\"\",Organisme!C683)","v":""}]
[null,null,null,null,null,null,null,null,{"$f":"IF(Organisme!C684=\"\",\"\",Organisme!C684)","v":""}]
[null,null,null,null,null,null,null,null,{"$f":"IF(Organisme!C685=\"\",\"\",Organisme!C685)","v":""}]
[null,null,null,null,null,null,null,null,{"$f":"IF(Organisme!C686=\"\",\"\",Organisme!C686)","v":""}]
[null,null,null,null,null,null,null,null,{"$f":"IF(Organisme!C687=\"\",\"\",Organisme!C687)","v":""}]
[null,null,null,null,null,null,null,null,{"$f":"IF(Organisme!C688=\"\",\"\",Organisme!C688)","v":""}]
[null,null,null,null,null,null,null,null,{"$f":"IF(Organisme!C689=\"\",\"\",Organisme!C689)","v":""}]
[null,null,null,null,null,null,null,null,{"$f":"IF(Organisme!C690=\"\",\"\",Organisme!C690)","v":""}]
[null,null,null,null,null,null,null,null,{"$f":"IF(Organisme!C691=\"\",\"\",Organisme!C691)","v":""}]
[null,null,null,null,null,null,null,null,{"$f":"IF(Organisme!C692=\"\",\"\",Organisme!C692)","v":""}]
[null,null,null,null,null,null,null,null,{"$f":"IF(Organisme!C693=\"\",\"\",Organisme!C693)","v":""}]
[null,null,null,null,null,null,null,null,{"$f":"IF(Organisme!C694=\"\",\"\",Organisme!C694)","v":""}]
[null,null,null,null,null,null,null,null,{"$f":"IF(Organisme!C695=\"\",\"\",Organisme!C695)","v":""}]
[null,null,null,null,null,null,null,null,{"$f":"IF(Organisme!C696=\"\",\"\",Organisme!C696)","v":""}]
[null,null,null,null,null,null,null,null,{"$f":"IF(Organisme!C697=\"\",\"\",Organisme!C697)","v":""}]
[null,null,null,null,null,null,null,null,{"$f":"IF(Organisme!C698=\"\",\"\",Organisme!C698)","v":""}]
[null,null,null,null,null,null,null,null,{"$f":"IF(Organisme!C699=\"\",\"\",Organisme!C699)","v":""}]
[null,null,null,null,null,null,null,null,{"$f":"IF(Organisme!C700=\"\",\"\",Organisme!C700)","v":""}]
[null,null,null,null,null,null,null,null,{"$f":"IF(Organisme!C701=\"\",\"\",Organisme!C701)","v":""}]
[null,null,null,null,null,null,null,null,{"$f":"IF(Organisme!C702=\"\",\"\",Organisme!C702)","v":""}]
[null,null,null,null,null,null,null,null,{"$f":"IF(Organisme!C703=\"\",\"\",Organisme!C703)","v":""}]
[null,null,null,null,null,null,null,null,{"$f":"IF(Organisme!C704=\"\",\"\",Organisme!C704)","v":""}]
[null,null,null,null,null,null,null,null,{"$f":"IF(Organisme!C705=\"\",\"\",Organisme!C705)","v":""}]
[null,null,null,null,null,null,null,null,{"$f":"IF(Organisme!C706=\"\",\"\",Organisme!C706)","v":""}]
[null,null,null,null,null,null,null,null,{"$f":"IF(Organisme!C707=\"\",\"\",Organisme!C707)","v":""}]
[null,null,null,null,null,null,null,null,{"$f":"IF(Organisme!C708=\"\",\"\",Organisme!C708)","v":""}]
[null,null,null,null,null,null,null,null,{"$f":"IF(Organisme!C709=\"\",\"\",Organisme!C709)","v":""}]
[null,null,null,null,null,null,null,null,{"$f":"IF(Organisme!C710=\"\",\"\",Organisme!C710)","v":""}]
[null,null,null,null,null,null,null,null,{"$f":"IF(Organisme!C711=\"\",\"\",Organisme!C711)","v":""}]
[null,null,null,null,null,null,null,null,{"$f":"IF(Organisme!C712=\"\",\"\",Organisme!C712)","v":""}]
[null,null,null,null,null,null,null,null,{"$f":"IF(Organisme!C713=\"\",\"\",Organisme!C713)","v":""}]
[null,null,null,null,null,null,null,null,{"$f":"IF(Organisme!C714=\"\",\"\",Organisme!C714)","v":""}]
[null,null,null,null,null,null,null,null,{"$f":"IF(Organisme!C715=\"\",\"\",Organisme!C715)","v":""}]
[null,null,null,null,null,null,null,null,{"$f":"IF(Organisme!C716=\"\",\"\",Organisme!C716)","v":""}]
[null,null,null,null,null,null,null,null,{"$f":"IF(Organisme!C717=\"\",\"\",Organisme!C717)","v":""}]
[null,null,null,null,null,null,null,null,{"$f":"IF(Organisme!C718=\"\",\"\",Organisme!C718)","v":""}]
[null,null,null,null,null,null,null,null,{"$f":"IF(Organisme!C719=\"\",\"\",Organisme!C719)","v":""}]
[null,null,null,null,null,null,null,null,{"$f":"IF(Organisme!C720=\"\",\"\",Organisme!C720)","v":""}]
[null,null,null,null,null,null,null,null,{"$f":"IF(Organisme!C721=\"\",\"\",Organisme!C721)","v":""}]
[null,null,null,null,null,null,null,null,{"$f":"IF(Organisme!C722=\"\",\"\",Organisme!C722)","v":""}]
[null,null,null,null,null,null,null,null,{"$f":"IF(Organisme!C723=\"\",\"\",Organisme!C723)","v":""}]
[null,null,null,null,null,null,null,null,{"$f":"IF(Organisme!C724=\"\",\"\",Organisme!C724)","v":""}]
[null,null,null,null,null,null,null,null,{"$f":"IF(Organisme!C725=\"\",\"\",Organisme!C725)","v":""}]
[null,null,null,null,null,null,null,null,{"$f":"IF(Organisme!C726=\"\",\"\",Organisme!C726)","v":""}]
[null,null,null,null,null,null,null,null,{"$f":"IF(Organisme!C727=\"\",\"\",Organisme!C727)","v":""}]
[null,null,null,null,null,null,null,null,{"$f":"IF(Organisme!C728=\"\",\"\",Organisme!C728)","v":""}]
[null,null,null,null,null,null,null,null,{"$f":"IF(Organisme!C729=\"\",\"\",Organisme!C729)","v":""}]
[null,null,null,null,null,null,null,null,{"$f":"IF(Organisme!C730=\"\",\"\",Organisme!C730)","v":""}]
[null,null,null,null,null,null,null,null,{"$f":"IF(Organisme!C731=\"\",\"\",Organisme!C731)","v":""}]
[null,null,null,null,null,null,null,null,{"$f":"IF(Organisme!C732=\"\",\"\",Organisme!C732)","v":""}]
[null,null,null,null,null,null,null,null,{"$f":"IF(Organisme!C733=\"\",\"\",Organisme!C733)","v":""}]
[null,null,null,null,null,null,null,null,{"$f":"IF(Organisme!C734=\"\",\"\",Organisme!C734)","v":""}]
[null,null,null,null,null,null,null,null,{"$f":"IF(Organisme!C735=\"\",\"\",Organisme!C735)","v":""}]
[null,null,null,null,null,null,null,null,{"$f":"IF(Organisme!C736=\"\",\"\",Organisme!C736)","v":""}]
[null,null,null,null,null,null,null,null,{"$f":"IF(Organisme!C737=\"\",\"\",Organisme!C737)","v":""}]
[null,null,null,null,null,null,null,null,{"$f":"IF(Organisme!C738=\"\",\"\",Organisme!C738)","v":""}]
[null,null,null,null,null,null,null,null,{"$f":"IF(Organisme!C739=\"\",\"\",Organisme!C739)","v":""}]
[null,null,null,null,null,null,null,null,{"$f":"IF(Organisme!C740=\"\",\"\",Organisme!C740)","v":""}]
[null,null,null,null,null,null,null,null,{"$f":"IF(Organisme!C741=\"\",\"\",Organisme!C741)","v":""}]
[null,null,null,null,null,null,null,null,{"$f":"IF(Organisme!C742=\"\",\"\",Organisme!C742)","v":""}]
[null,null,null,null,null,null,null,null,{"$f":"IF(Organisme!C743=\"\",\"\",Organisme!C743)","v":""}]
[null,null,null,null,null,null,null,null,{"$f":"IF(Organisme!C744=\"\",\"\",Organisme!C744)","v":""}]
[null,null,null,null,null,null,null,null,{"$f":"IF(Organisme!C745=\"\",\"\",Organisme!C745)","v":""}]
[null,null,null,null,null,null,null,null,{"$f":"IF(Organisme!C746=\"\",\"\",Organisme!C746)","v":""}]
[null,null,null,null,null,null,null,null,{"$f":"IF(Organisme!C747=\"\",\"\",Organisme!C747)","v":""}]
[null,null,null,null,null,null,null,null,{"$f":"IF(Organisme!C748=\"\",\"\",Organisme!C748)","v":""}]
[null,null,null,null,null,null,null,null,{"$f":"IF(Organisme!C749=\"\",\"\",Organisme!C749)","v":""}]
[null,null,null,null,null,null,null,null,{"$f":"IF(Organisme!C750=\"\",\"\",Organisme!C750)","v":""}]
[null,null,null,null,null,null,null,null,{"$f":"IF(Organisme!C751=\"\",\"\",Organisme!C751)","v":""}]
[null,null,null,null,null,null,null,null,{"$f":"IF(Organisme!C752=\"\",\"\",Organisme!C752)","v":""}]
[null,null,null,null,null,null,null,null,{"$f":"IF(Organisme!C753=\"\",\"\",Organisme!C753)","v":""}]
[null,null,null,null,null,null,null,null,{"$f":"IF(Organisme!C754=\"\",\"\",Organisme!C754)","v":""}]
[null,null,null,null,null,null,null,null,{"$f":"IF(Organisme!C755=\"\",\"\",Organisme!C755)","v":""}]
[null,null,null,null,null,null,null,null,{"$f":"IF(Organisme!C756=\"\",\"\",Organisme!C756)","v":""}]
[null,null,null,null,null,null,null,null,{"$f":"IF(Organisme!C757=\"\",\"\",Organisme!C757)","v":""}]
[null,null,null,null,null,null,null,null,{"$f":"IF(Organisme!C758=\"\",\"\",Organisme!C758)","v":""}]
[null,null,null,null,null,null,null,null,{"$f":"IF(Organisme!C759=\"\",\"\",Organisme!C759)","v":""}]
[null,null,null,null,null,null,null,null,{"$f":"IF(Organisme!C760=\"\",\"\",Organisme!C760)","v":""}]
[null,null,null,null,null,null,null,null,{"$f":"IF(Organisme!C761=\"\",\"\",Organisme!C761)","v":""}]
[null,null,null,null,null,null,null,null,{"$f":"IF(Organisme!C762=\"\",\"\",Organisme!C762)","v":""}]
[null,null,null,null,null,null,null,null,{"$f":"IF(Organisme!C763=\"\",\"\",Organisme!C763)","v":""}]
[null,null,null,null,null,null,null,null,{"$f":"IF(Organisme!C764=\"\",\"\",Organisme!C764)","v":""}]
[null,null,null,null,null,null,null,null,{"$f":"IF(Organisme!C765=\"\",\"\",Organisme!C765)","v":""}]
[null,null,null,null,null,null,null,null,{"$f":"IF(Organisme!C766=\"\",\"\",Organisme!C766)","v":""}]
[null,null,null,null,null,null,null,null,{"$f":"IF(Organisme!C767=\"\",\"\",Organisme!C767)","v":""}]
[null,null,null,null,null,null,null,null,{"$f":"IF(Organisme!C768=\"\",\"\",Organisme!C768)","v":""}]
[null,null,null,null,null,null,null,null,{"$f":"IF(Organisme!C769=\"\",\"\",Organisme!C769)","v":""}]
[null,null,null,null,null,null,null,null,{"$f":"IF(Organisme!C770=\"\",\"\",Organisme!C770)","v":""}]
[null,null,null,null,null,null,null,null,{"$f":"IF(Organisme!C771=\"\",\"\",Organisme!C771)","v":""}]
[null,null,null,null,null,null,null,null,{"$f":"IF(Organisme!C772=\"\",\"\",Organisme!C772)","v":""}]
[null,null,null,null,null,null,null,null,{"$f":"IF(Organisme!C773=\"\",\"\",Organisme!C773)","v":""}]
[null,null,null,null,null,null,null,null,{"$f":"IF(Organisme!C774=\"\",\"\",Organisme!C774)","v":""}]
[null,null,null,null,null,null,null,null,{"$f":"IF(Organisme!C775=\"\",\"\",Organisme!C775)","v":""}]
[null,null,null,null,null,null,null,null,{"$f":"IF(Organisme!C776=\"\",\"\",Organisme!C776)","v":""}]
[null,null,null,null,null,null,null,null,{"$f":"IF(Organisme!C777=\"\",\"\",Organisme!C777)","v":""}]
[null,null,null,null,null,null,null,null,{"$f":"IF(Organisme!C778=\"\",\"\",Organisme!C778)","v":""}]
[null,null,null,null,null,null,null,null,{"$f":"IF(Organisme!C779=\"\",\"\",Organisme!C779)","v":""}]
[null,null,null,null,null,null,null,null,{"$f":"IF(Organisme!C780=\"\",\"\",Organisme!C780)","v":""}]
[null,null,null,null,null,null,null,null,{"$f":"IF(Organisme!C781=\"\",\"\",Organisme!C781)","v":""}]
[null,null,null,null,null,null,null,null,{"$f":"IF(Organisme!C782=\"\",\"\",Organisme!C782)","v":""}]
[null,null,null,null,null,null,null,null,{"$f":"IF(Organisme!C783=\"\",\"\",Organisme!C783)","v":""}]
[null,null,null,null,null,null,null,null,{"$f":"IF(Organisme!C784=\"\",\"\",Organisme!C784)","v":""}]
[null,null,null,null,null,null,null,null,{"$f":"IF(Organisme!C785=\"\",\"\",Organisme!C785)","v":""}]
[null,null,null,null,null,null,null,null,{"$f":"IF(Organisme!C786=\"\",\"\",Organisme!C786)","v":""}]
[null,null,null,null,null,null,null,null,{"$f":"IF(Organisme!C787=\"\",\"\",Organisme!C787)","v":""}]
[null,null,null,null,null,null,null,null,{"$f":"IF(Organisme!C788=\"\",\"\",Organisme!C788)","v":""}]
[null,null,null,null,null,null,null,null,{"$f":"IF(Organisme!C789=\"\",\"\",Organisme!C789)","v":""}]
[null,null,null,null,null,null,null,null,{"$f":"IF(Organisme!C790=\"\",\"\",Organisme!C790)","v":""}]
[null,null,null,null,null,null,null,null,{"$f":"IF(Organisme!C791=\"\",\"\",Organisme!C791)","v":""}]
[null,null,null,null,null,null,null,null,{"$f":"IF(Organisme!C792=\"\",\"\",Organisme!C792)","v":""}]
[null,null,null,null,null,null,null,null,{"$f":"IF(Organisme!C793=\"\",\"\",Organisme!C793)","v":""}]
[null,null,null,null,null,null,null,null,{"$f":"IF(Organisme!C794=\"\",\"\",Organisme!C794)","v":""}]
[null,null,null,null,null,null,null,null,{"$f":"IF(Organisme!C795=\"\",\"\",Organisme!C795)","v":""}]
[null,null,null,null,null,null,null,null,{"$f":"IF(Organisme!C796=\"\",\"\",Organisme!C796)","v":""}]
[null,null,null,null,null,null,null,null,{"$f":"IF(Organisme!C797=\"\",\"\",Organisme!C797)","v":""}]
[null,null,null,null,null,null,null,null,{"$f":"IF(Organisme!C798=\"\",\"\",Organisme!C798)","v":""}]
[null,null,null,null,null,null,null,null,{"$f":"IF(Organisme!C799=\"\",\"\",Organisme!C799)","v":""}]
[null,null,null,null,null,null,null,null,{"$f":"IF(Organisme!C800=\"\",\"\",Organisme!C800)","v":""}]
[null,null,null,null,null,null,null,null,{"$f":"IF(Organisme!C801=\"\",\"\",Organisme!C801)","v":""}]
[null,null,null,null,null,null,null,null,{"$f":"IF(Organisme!C802=\"\",\"\",Organisme!C802)","v":""}]
[null,null,null,null,null,null,null,null,{"$f":"IF(Organisme!C803=\"\",\"\",Organisme!C803)","v":""}]
[null,null,null,null,null,null,null,null,{"$f":"IF(Organisme!C804=\"\",\"\",Organisme!C804)","v":""}]
[null,null,null,null,null,null,null,null,{"$f":"IF(Organisme!C805=\"\",\"\",Organisme!C805)","v":""}]
[null,null,null,null,null,null,null,null,{"$f":"IF(Organisme!C806=\"\",\"\",Organisme!C806)","v":""}]
[null,null,null,null,null,null,null,null,{"$f":"IF(Organisme!C807=\"\",\"\",Organisme!C807)","v":""}]
[null,null,null,null,null,null,null,null,{"$f":"IF(Organisme!C808=\"\",\"\",Organisme!C808)","v":""}]
[null,null,null,null,null,null,null,null,{"$f":"IF(Organisme!C809=\"\",\"\",Organisme!C809)","v":""}]
[null,null,null,null,null,null,null,null,{"$f":"IF(Organisme!C810=\"\",\"\",Organisme!C810)","v":""}]
[null,null,null,null,null,null,null,null,{"$f":"IF(Organisme!C811=\"\",\"\",Organisme!C811)","v":""}]
[null,null,null,null,null,null,null,null,{"$f":"IF(Organisme!C812=\"\",\"\",Organisme!C812)","v":""}]
[null,null,null,null,null,null,null,null,{"$f":"IF(Organisme!C813=\"\",\"\",Organisme!C813)","v":""}]
[null,null,null,null,null,null,null,null,{"$f":"IF(Organisme!C814=\"\",\"\",Organisme!C814)","v":""}]
[null,null,null,null,null,null,null,null,{"$f":"IF(Organisme!C815=\"\",\"\",Organisme!C815)","v":""}]
[null,null,null,null,null,null,null,null,{"$f":"IF(Organisme!C816=\"\",\"\",Organisme!C816)","v":""}]
[null,null,null,null,null,null,null,null,{"$f":"IF(Organisme!C817=\"\",\"\",Organisme!C817)","v":""}]
[null,null,null,null,null,null,null,null,{"$f":"IF(Organisme!C818=\"\",\"\",Organisme!C818)","v":""}]
[null,null,null,null,null,null,null,null,{"$f":"IF(Organisme!C819=\"\",\"\",Organisme!C819)","v":""}]
[null,null,null,null,null,null,null,null,{"$f":"IF(Organisme!C820=\"\",\"\",Organisme!C820)","v":""}]
[null,null,null,null,null,null,null,null,{"$f":"IF(Organisme!C821=\"\",\"\",Organisme!C821)","v":""}]
[null,null,null,null,null,null,null,null,{"$f":"IF(Organisme!C822=\"\",\"\",Organisme!C822)","v":""}]
[null,null,null,null,null,null,null,null,{"$f":"IF(Organisme!C823=\"\",\"\",Organisme!C823)","v":""}]
[null,null,null,null,null,null,null,null,{"$f":"IF(Organisme!C824=\"\",\"\",Organisme!C824)","v":""}]
[null,null,null,null,null,null,null,null,{"$f":"IF(Organisme!C825=\"\",\"\",Organisme!C825)","v":""}]
[null,null,null,null,null,null,null,null,{"$f":"IF(Organisme!C826=\"\",\"\",Organisme!C826)","v":""}]
[null,null,null,null,null,null,null,null,{"$f":"IF(Organisme!C827=\"\",\"\",Organisme!C827)","v":""}]
[null,null,null,null,null,null,null,null,{"$f":"IF(Organisme!C828=\"\",\"\",Organisme!C828)","v":""}]
[null,null,null,null,null,null,null,null,{"$f":"IF(Organisme!C829=\"\",\"\",Organisme!C829)","v":""}]
[null,null,null,null,null,null,null,null,{"$f":"IF(Organisme!C830=\"\",\"\",Organisme!C830)","v":""}]
[null,null,null,null,null,null,null,null,{"$f":"IF(Organisme!C831=\"\",\"\",Organisme!C831)","v":""}]
[null,null,null,null,null,null,null,null,{"$f":"IF(Organisme!C832=\"\",\"\",Organisme!C832)","v":""}]
[null,null,null,null,null,null,null,null,{"$f":"IF(Organisme!C833=\"\",\"\",Organisme!C833)","v":""}]
[null,null,null,null,null,null,null,null,{"$f":"IF(Organisme!C834=\"\",\"\",Organisme!C834)","v":""}]
[null,null,null,null,null,null,null,null,{"$f":"IF(Organisme!C835=\"\",\"\",Organisme!C835)","v":""}]
[null,null,null,null,null,null,null,null,{"$f":"IF(Organisme!C836=\"\",\"\",Organisme!C836)","v":""}]
[null,null,null,null,null,null,null,null,{"$f":"IF(Organisme!C837=\"\",\"\",Organisme!C837)","v":""}]
[null,null,null,null,null,null,null,null,{"$f":"IF(Organisme!C838=\"\",\"\",Organisme!C838)","v":""}]
[null,null,null,null,null,null,null,null,{"$f":"IF(Organisme!C839=\"\",\"\",Organisme!C839)","v":""}]
[null,null,null,null,null,null,null,null,{"$f":"IF(Organisme!C840=\"\",\"\",Organisme!C840)","v":""}]
[null,null,null,null,null,null,null,null,{"$f":"IF(Organisme!C841=\"\",\"\",Organisme!C841)","v":""}]
[null,null,null,null,null,null,null,null,{"$f":"IF(Organisme!C842=\"\",\"\",Organisme!C842)","v":""}]
[null,null,null,null,null,null,null,null,{"$f":"IF(Organisme!C843=\"\",\"\",Organisme!C843)","v":""}]
[null,null,null,null,null,null,null,null,{"$f":"IF(Organisme!C844=\"\",\"\",Organisme!C844)","v":""}]
[null,null,null,null,null,null,null,null,{"$f":"IF(Organisme!C845=\"\",\"\",Organisme!C845)","v":""}]
[null,null,null,null,null,null,null,null,{"$f":"IF(Organisme!C846=\"\",\"\",Organisme!C846)","v":""}]
[null,null,null,null,null,null,null,null,{"$f":"IF(Organisme!C847=\"\",\"\",Organisme!C847)","v":""}]
[null,null,null,null,null,null,null,null,{"$f":"IF(Organisme!C848=\"\",\"\",Organisme!C848)","v":""}]
[null,null,null,null,null,null,null,null,{"$f":"IF(Organisme!C849=\"\",\"\",Organisme!C849)","v":""}]
[null,null,null,null,null,null,null,null,{"$f":"IF(Organisme!C850=\"\",\"\",Organisme!C850)","v":""}]
[null,null,null,null,null,null,null,null,{"$f":"IF(Organisme!C851=\"\",\"\",Organisme!C851)","v":""}]
[null,null,null,null,null,null,null,null,{"$f":"IF(Organisme!C852=\"\",\"\",Organisme!C852)","v":""}]
[null,null,null,null,null,null,null,null,{"$f":"IF(Organisme!C853=\"\",\"\",Organisme!C853)","v":""}]
[null,null,null,null,null,null,null,null,{"$f":"IF(Organisme!C854=\"\",\"\",Organisme!C854)","v":""}]
[null,null,null,null,null,null,null,null,{"$f":"IF(Organisme!C855=\"\",\"\",Organisme!C855)","v":""}]
[null,null,null,null,null,null,null,null,{"$f":"IF(Organisme!C856=\"\",\"\",Organisme!C856)","v":""}]
[null,null,null,null,null,null,null,null,{"$f":"IF(Organisme!C857=\"\",\"\",Organisme!C857)","v":""}]
[null,null,null,null,null,null,null,null,{"$f":"IF(Organisme!C858=\"\",\"\",Organisme!C858)","v":""}]
[null,null,null,null,null,null,null,null,{"$f":"IF(Organisme!C859=\"\",\"\",Organisme!C859)","v":""}]
[null,null,null,null,null,null,null,null,{"$f":"IF(Organisme!C860=\"\",\"\",Organisme!C860)","v":""}]
[null,null,null,null,null,null,null,null,{"$f":"IF(Organisme!C861=\"\",\"\",Organisme!C861)","v":""}]
[null,null,null,null,null,null,null,null,{"$f":"IF(Organisme!C862=\"\",\"\",Organisme!C862)","v":""}]
[null,null,null,null,null,null,null,null,{"$f":"IF(Organisme!C863=\"\",\"\",Organisme!C863)","v":""}]
[null,null,null,null,null,null,null,null,{"$f":"IF(Organisme!C864=\"\",\"\",Organisme!C864)","v":""}]
[null,null,null,null,null,null,null,null,{"$f":"IF(Organisme!C865=\"\",\"\",Organisme!C865)","v":""}]
[null,null,null,null,null,null,null,null,{"$f":"IF(Organisme!C866=\"\",\"\",Organisme!C866)","v":""}]
[null,null,null,null,null,null,null,null,{"$f":"IF(Organisme!C867=\"\",\"\",Organisme!C867)","v":""}]
[null,null,null,null,null,null,null,null,{"$f":"IF(Organisme!C868=\"\",\"\",Organisme!C868)","v":""}]
[null,null,null,null,null,null,null,null,{"$f":"IF(Organisme!C869=\"\",\"\",Organisme!C869)","v":""}]
[null,null,null,null,null,null,null,null,{"$f":"IF(Organisme!C870=\"\",\"\",Organisme!C870)","v":""}]
[null,null,null,null,null,null,null,null,{"$f":"IF(Organisme!C871=\"\",\"\",Organisme!C871)","v":""}]
[null,null,null,null,null,null,null,null,{"$f":"IF(Organisme!C872=\"\",\"\",Organisme!C872)","v":""}]
[null,null,null,null,null,null,null,null,{"$f":"IF(Organisme!C873=\"\",\"\",Organisme!C873)","v":""}]
[null,null,null,null,null,null,null,null,{"$f":"IF(Organisme!C874=\"\",\"\",Organisme!C874)","v":""}]
[null,null,null,null,null,null,null,null,{"$f":"IF(Organisme!C875=\"\",\"\",Organisme!C875)","v":""}]
[null,null,null,null,null,null,null,null,{"$f":"IF(Organisme!C876=\"\",\"\",Organisme!C876)","v":""}]
[null,null,null,null,null,null,null,null,{"$f":"IF(Organisme!C877=\"\",\"\",Organisme!C877)","v":""}]
[null,null,null,null,null,null,null,null,{"$f":"IF(Organisme!C878=\"\",\"\",Organisme!C878)","v":""}]
[null,null,null,null,null,null,null,null,{"$f":"IF(Organisme!C879=\"\",\"\",Organisme!C879)","v":""}]
[null,null,null,null,null,null,null,null,{"$f":"IF(Organisme!C880=\"\",\"\",Organisme!C880)","v":""}]
[null,null,null,null,null,null,null,null,{"$f":"IF(Organisme!C881=\"\",\"\",Organisme!C881)","v":""}]
[null,null,null,null,null,null,null,null,{"$f":"IF(Organisme!C882=\"\",\"\",Organisme!C882)","v":""}]
[null,null,null,null,null,null,null,null,{"$f":"IF(Organisme!C883=\"\",\"\",Organisme!C883)","v":""}]
[null,null,null,null,null,null,null,null,{"$f":"IF(Organisme!C884=\"\",\"\",Organisme!C884)","v":""}]
[null,null,null,null,null,null,null,null,{"$f":"IF(Organisme!C885=\"\",\"\",Organisme!C885)","v":""}]
[null,null,null,null,null,null,null,null,{"$f":"IF(Organisme!C886=\"\",\"\",Organisme!C886)","v":""}]
[null,null,null,null,null,null,null,null,{"$f":"IF(Organisme!C887=\"\",\"\",Organisme!C887)","v":""}]
[null,null,null,null,null,null,null,null,{"$f":"IF(Organisme!C888=\"\",\"\",Organisme!C888)","v":""}]
[null,null,null,null,null,null,null,null,{"$f":"IF(Organisme!C889=\"\",\"\",Organisme!C889)","v":""}]
[null,null,null,null,null,null,null,null,{"$f":"IF(Organisme!C890=\"\",\"\",Organisme!C890)","v":""}]
[null,null,null,null,null,null,null,null,{"$f":"IF(Organisme!C891=\"\",\"\",Organisme!C891)","v":""}]
[null,null,null,null,null,null,null,null,{"$f":"IF(Organisme!C892=\"\",\"\",Organisme!C892)","v":""}]
[null,null,null,null,null,null,null,null,{"$f":"IF(Organisme!C893=\"\",\"\",Organisme!C893)","v":""}]
[null,null,null,null,null,null,null,null,{"$f":"IF(Organisme!C894=\"\",\"\",Organisme!C894)","v":""}]
[null,null,null,null,null,null,null,null,{"$f":"IF(Organisme!C895=\"\",\"\",Organisme!C895)","v":""}]
[null,null,null,null,null,null,null,null,{"$f":"IF(Organisme!C896=\"\",\"\",Organisme!C896)","v":""}]
[null,null,null,null,null,null,null,null,{"$f":"IF(Organisme!C897=\"\",\"\",Organisme!C897)","v":""}]
[null,null,null,null,null,null,null,null,{"$f":"IF(Organisme!C898=\"\",\"\",Organisme!C898)","v":""}]
[null,null,null,null,null,null,null,null,{"$f":"IF(Organisme!C899=\"\",\"\",Organisme!C899)","v":""}]
[null,null,null,null,null,null,null,null,{"$f":"IF(Organisme!C900=\"\",\"\",Organisme!C900)","v":""}]
[null,null,null,null,null,null,null,null,{"$f":"IF(Organisme!C901=\"\",\"\",Organisme!C901)","v":""}]
[null,null,null,null,null,null,null,null,{"$f":"IF(Organisme!C902=\"\",\"\",Organisme!C902)","v":""}]
[null,null,null,null,null,null,null,null,{"$f":"IF(Organisme!C903=\"\",\"\",Organisme!C903)","v":""}]
[null,null,null,null,null,null,null,null,{"$f":"IF(Organisme!C904=\"\",\"\",Organisme!C904)","v":""}]
[null,null,null,null,null,null,null,null,{"$f":"IF(Organisme!C905=\"\",\"\",Organisme!C905)","v":""}]
[null,null,null,null,null,null,null,null,{"$f":"IF(Organisme!C906=\"\",\"\",Organisme!C906)","v":""}]
[null,null,null,null,null,null,null,null,{"$f":"IF(Organisme!C907=\"\",\"\",Organisme!C907)","v":""}]
[null,null,null,null,null,null,null,null,{"$f":"IF(Organisme!C908=\"\",\"\",Organisme!C908)","v":""}]
[null,null,null,null,null,null,null,null,{"$f":"IF(Organisme!C909=\"\",\"\",Organisme!C909)","v":""}]
[null,null,null,null,null,null,null,null,{"$f":"IF(Organisme!C910=\"\",\"\",Organisme!C910)","v":""}]
[null,null,null,null,null,null,null,null,{"$f":"IF(Organisme!C911=\"\",\"\",Organisme!C911)","v":""}]
[null,null,null,null,null,null,null,null,{"$f":"IF(Organisme!C912=\"\",\"\",Organisme!C912)","v":""}]
[null,null,null,null,null,null,null,null,{"$f":"IF(Organisme!C913=\"\",\"\",Organisme!C913)","v":""}]
[null,null,null,null,null,null,null,null,{"$f":"IF(Organisme!C914=\"\",\"\",Organisme!C914)","v":""}]
[null,null,null,null,null,null,null,null,{"$f":"IF(Organisme!C915=\"\",\"\",Organisme!C915)","v":""}]
[null,null,null,null,null,null,null,null,{"$f":"IF(Organisme!C916=\"\",\"\",Organisme!C916)","v":""}]
[null,null,null,null,null,null,null,null,{"$f":"IF(Organisme!C917=\"\",\"\",Organisme!C917)","v":""}]
[null,null,null,null,null,null,null,null,{"$f":"IF(Organisme!C918=\"\",\"\",Organisme!C918)","v":""}]
[null,null,null,null,null,null,null,null,{"$f":"IF(Organisme!C919=\"\",\"\",Organisme!C919)","v":""}]
[null,null,null,null,null,null,null,null,{"$f":"IF(Organisme!C920=\"\",\"\",Organisme!C920)","v":""}]
[null,null,null,null,null,null,null,null,{"$f":"IF(Organisme!C921=\"\",\"\",Organisme!C921)","v":""}]
[null,null,null,null,null,null,null,null,{"$f":"IF(Organisme!C922=\"\",\"\",Organisme!C922)","v":""}]
[null,null,null,null,null,null,null,null,{"$f":"IF(Organisme!C923=\"\",\"\",Organisme!C923)","v":""}]
[null,null,null,null,null,null,null,null,{"$f":"IF(Organisme!C924=\"\",\"\",Organisme!C924)","v":""}]
[null,null,null,null,null,null,null,null,{"$f":"IF(Organisme!C925=\"\",\"\",Organisme!C925)","v":""}]
[null,null,null,null,null,null,null,null,{"$f":"IF(Organisme!C926=\"\",\"\",Organisme!C926)","v":""}]
[null,null,null,null,null,null,null,null,{"$f":"IF(Organisme!C927=\"\",\"\",Organisme!C927)","v":""}]
[null,null,null,null,null,null,null,null,{"$f":"IF(Organisme!C928=\"\",\"\",Organisme!C928)","v":""}]
[null,null,null,null,null,null,null,null,{"$f":"IF(Organisme!C929=\"\",\"\",Organisme!C929)","v":""}]
[null,null,null,null,null,null,null,null,{"$f":"IF(Organisme!C930=\"\",\"\",Organisme!C930)","v":""}]
[null,null,null,null,null,null,null,null,{"$f":"IF(Organisme!C931=\"\",\"\",Organisme!C931)","v":""}]
[null,null,null,null,null,null,null,null,{"$f":"IF(Organisme!C932=\"\",\"\",Organisme!C932)","v":""}]
[null,null,null,null,null,null,null,null,{"$f":"IF(Organisme!C933=\"\",\"\",Organisme!C933)","v":""}]
[null,null,null,null,null,null,null,null,{"$f":"IF(Organisme!C934=\"\",\"\",Organisme!C934)","v":""}]
[null,null,null,null,null,null,null,null,{"$f":"IF(Organisme!C935=\"\",\"\",Organisme!C935)","v":""}]
[null,null,null,null,null,null,null,null,{"$f":"IF(Organisme!C936=\"\",\"\",Organisme!C936)","v":""}]
[null,null,null,null,null,null,null,null,{"$f":"IF(Organisme!C937=\"\",\"\",Organisme!C937)","v":""}]
[null,null,null,null,null,null,null,null,{"$f":"IF(Organisme!C938=\"\",\"\",Organisme!C938)","v":""}]
[null,null,null,null,null,null,null,null,{"$f":"IF(Organisme!C939=\"\",\"\",Organisme!C939)","v":""}]
[null,null,null,null,null,null,null,null,{"$f":"IF(Organisme!C940=\"\",\"\",Organisme!C940)","v":""}]
[null,null,null,null,null,null,null,null,{"$f":"IF(Organisme!C941=\"\",\"\",Organisme!C941)","v":""}]
[null,null,null,null,null,null,null,null,{"$f":"IF(Organisme!C942=\"\",\"\",Organisme!C942)","v":""}]
[null,null,null,null,null,null,null,null,{"$f":"IF(Organisme!C943=\"\",\"\",Organisme!C943)","v":""}]
[null,null,null,null,null,null,null,null,{"$f":"IF(Organisme!C944=\"\",\"\",Organisme!C944)","v":""}]
[null,null,null,null,null,null,null,null,{"$f":"IF(Organisme!C945=\"\",\"\",Organisme!C945)","v":""}]
[null,null,null,null,null,null,null,null,{"$f":"IF(Organisme!C946=\"\",\"\",Organisme!C946)","v":""}]
[null,null,null,null,null,null,null,null,{"$f":"IF(Organisme!C947=\"\",\"\",Organisme!C947)","v":""}]
[null,null,null,null,null,null,null,null,{"$f":"IF(Organisme!C948=\"\",\"\",Organisme!C948)","v":""}]
[null,null,null,null,null,null,null,null,{"$f":"IF(Organisme!C949=\"\",\"\",Organisme!C949)","v":""}]
[null,null,null,null,null,null,null,null,{"$f":"IF(Organisme!C950=\"\",\"\",Organisme!C950)","v":""}]
[null,null,null,null,null,null,null,null,{"$f":"IF(Organisme!C951=\"\",\"\",Organisme!C951)","v":""}]
[null,null,null,null,null,null,null,null,{"$f":"IF(Organisme!C952=\"\",\"\",Organisme!C952)","v":""}]
[null,null,null,null,null,null,null,null,{"$f":"IF(Organisme!C953=\"\",\"\",Organisme!C953)","v":""}]
[null,null,null,null,null,null,null,null,{"$f":"IF(Organisme!C954=\"\",\"\",Organisme!C954)","v":""}]
[null,null,null,null,null,null,null,null,{"$f":"IF(Organisme!C955=\"\",\"\",Organisme!C955)","v":""}]
[null,null,null,null,null,null,null,null,{"$f":"IF(Organisme!C956=\"\",\"\",Organisme!C956)","v":""}]
[null,null,null,null,null,null,null,null,{"$f":"IF(Organisme!C957=\"\",\"\",Organisme!C957)","v":""}]
[null,null,null,null,null,null,null,null,{"$f":"IF(Organisme!C958=\"\",\"\",Organisme!C958)","v":""}]
[null,null,null,null,null,null,null,null,{"$f":"IF(Organisme!C959=\"\",\"\",Organisme!C959)","v":""}]
[null,null,null,null,null,null,null,null,{"$f":"IF(Organisme!C960=\"\",\"\",Organisme!C960)","v":""}]
[null,null,null,null,null,null,null,null,{"$f":"IF(Organisme!C961=\"\",\"\",Organisme!C961)","v":""}]
[null,null,null,null,null,null,null,null,{"$f":"IF(Organisme!C962=\"\",\"\",Organisme!C962)","v":""}]
[null,null,null,null,null,null,null,null,{"$f":"IF(Organisme!C963=\"\",\"\",Organisme!C963)","v":""}]
[null,null,null,null,null,null,null,null,{"$f":"IF(Organisme!C964=\"\",\"\",Organisme!C964)","v":""}]
[null,null,null,null,null,null,null,null,{"$f":"IF(Organisme!C965=\"\",\"\",Organisme!C965)","v":""}]
[null,null,null,null,null,null,null,null,{"$f":"IF(Organisme!C966=\"\",\"\",Organisme!C966)","v":""}]
[null,null,null,null,null,null,null,null,{"$f":"IF(Organisme!C967=\"\",\"\",Organisme!C967)","v":""}]
[null,null,null,null,null,null,null,null,{"$f":"IF(Organisme!C968=\"\",\"\",Organisme!C968)","v":""}]
[null,null,null,null,null,null,null,null,{"$f":"IF(Organisme!C969=\"\",\"\",Organisme!C969)","v":""}]
[null,null,null,null,null,null,null,null,{"$f":"IF(Organisme!C970=\"\",\"\",Organisme!C970)","v":""}]
[null,null,null,null,null,null,null,null,{"$f":"IF(Organisme!C971=\"\",\"\",Organisme!C971)","v":""}]
[null,null,null,null,null,null,null,null,{"$f":"IF(Organisme!C972=\"\",\"\",Organisme!C972)","v":""}]
[null,null,null,null,null,null,null,null,{"$f":"IF(Organisme!C973=\"\",\"\",Organisme!C973)","v":""}]
[null,null,null,null,null,null,null,null,{"$f":"IF(Organisme!C974=\"\",\"\",Organisme!C974)","v":""}]
[null,null,null,null,null,null,null,null,{"$f":"IF(Organisme!C975=\"\",\"\",Organisme!C975)","v":""}]
[null,null,null,null,null,null,null,null,{"$f":"IF(Organisme!C976=\"\",\"\",Organisme!C976)","v":""}]
[null,null,null,null,null,null,null,null,{"$f":"IF(Organisme!C977=\"\",\"\",Organisme!C977)","v":""}]
[null,null,null,null,null,null,null,null,{"$f":"IF(Organisme!C978=\"\",\"\",Organisme!C978)","v":""}]
[null,null,null,null,null,null,null,null,{"$f":"IF(Organisme!C979=\"\",\"\",Organisme!C979)","v":""}]
[null,null,null,null,null,null,null,null,{"$f":"IF(Organisme!C980=\"\",\"\",Organisme!C980)","v":""}]
[null,null,null,null,null,null,null,null,{"$f":"IF(Organisme!C981=\"\",\"\",Organisme!C981)","v":""}]
[null,null,null,null,null,null,null,null,{"$f":"IF(Organisme!C982=\"\",\"\",Organisme!C982)","v":""}]
[null,null,null,null,null,null,null,null,{"$f":"IF(Organisme!C983=\"\",\"\",Organisme!C983)","v":""}]
[null,null,null,null,null,null,null,null,{"$f":"IF(Organisme!C984=\"\",\"\",Organisme!C984)","v":""}]
[null,null,null,null,null,null,null,null,{"$f":"IF(Organisme!C985=\"\",\"\",Organisme!C985)","v":""}]
[null,null,null,null,null,null,null,null,{"$f":"IF(Organisme!C986=\"\",\"\",Organisme!C986)","v":""}]
[null,null,null,null,null,null,null,null,{"$f":"IF(Organisme!C987=\"\",\"\",Organisme!C987)","v":""}]
[null,null,null,null,null,null,null,null,{"$f":"IF(Organisme!C988=\"\",\"\",Organisme!C988)","v":""}]
[null,null,null,null,null,null,null,null,{"$f":"IF(Organisme!C989=\"\",\"\",Organisme!C989)","v":""}]
[null,null,null,null,null,null,null,null,{"$f":"IF(Organisme!C990=\"\",\"\",Organisme!C990)","v":""}]
[null,null,null,null,null,null,null,null,{"$f":"IF(Organisme!C991=\"\",\"\",Organisme!C991)","v":""}]
[null,null,null,null,null,null,null,null,{"$f":"IF(Organisme!C992=\"\",\"\",Organisme!C992)","v":""}]
[null,null,null,null,null,null,null,null,{"$f":"IF(Organisme!C993=\"\",\"\",Organisme!C993)","v":""}]
[null,null,null,null,null,null,null,null,{"$f":"IF(Organisme!C994=\"\",\"\",Organisme!C994)","v":""}]
[null,null,null,null,null,null,null,null,{"$f":"IF(Organisme!C995=\"\",\"\",Organisme!C995)","v":""}]
[null,null,null,null,null,null,null,null,{"$f":"IF(Organisme!C996=\"\",\"\",Organisme!C996)","v":""}]
[null,null,null,null,null,null,null,null,{"$f":"IF(Organisme!C997=\"\",\"\",Organisme!C997)","v":""}]
[null,null,null,null,null,null,null,null,{"$f":"IF(Organisme!C998=\"\",\"\",Organisme!C998)","v":""}]
[null,null,null,null,null,null,null,null,{"$f":"IF(Organisme!C999=\"\",\"\",Organisme!C999)","v":""}]
[null,null,null,null,null,null,null,null,{"$f":"IF(Organisme!C1000=\"\",\"\",Organisme!C1000)","v":""}]
[null,null,null,null,null,null,null,null,{"$f":"IF(Organisme!C1001=\"\",\"\",Organisme!C1001)","v":""}]
[null,null,null,null,null,null,null,null,{"$f":"IF(Organisme!C1002=\"\",\"\",Organisme!C1002)","v":""}]
[null,null,null,null,null,null,null,null,{"$f":"IF(Organisme!C1003=\"\",\"\",Organisme!C1003)","v":""}]
[null,null,null,null,null,null,null,null,{"$f":"IF(Organisme!C1004=\"\",\"\",Organisme!C1004)","v":""}]
[null,null,null,null,null,null,null,null,{"$f":"IF(Organisme!C1005=\"\",\"\",Organisme!C1005)","v":""}]
[null,null,null,null,null,null,null,null,{"$f":"IF(Organisme!C1006=\"\",\"\",Organisme!C1006)","v":""}]